{"text_format":"3","workbook":"xlsx","n_sheets":4,"sheets":["ΣΩΡΕΥΤΙΚΗ ΣΥΝΟΨΗ ΠΡΟΫΠΟΛΟΓΙΣΜΟΥ","ΣΥΝΟΨΗ ΜΗΝΙΑΙΩΝ ΕΞΟΔΩΝ","ΑΝΑΛΥΤΙΚΑ ΕΞΟΔΑ","ΦΙΛΑΝΘΡΩΠΙΕΣ & ΧΟΡΗΓΙΕΣ"],"not_rendered":{"images":1,"defined_names":15},"read":"whole","date_system":"1900"}

{"sheet":"ΣΩΡΕΥΤΙΚΗ ΣΥΝΟΨΗ ΠΡΟΫΠΟΛΟΓΙΣΜΟΥ","index":0,"n_rows":16,"n_cols":7,"rows_kept":16,"merged":[[1,1,1,4]]}
[]
[null,"ΣΩΡΕΥΤΙΚΑ ΠΡΑΓΜΑΤΙΚΑ έναντι ΠΡΟΫΠΟΛΟΓΙΣΜΕΝΩΝ",{"$nulls":3},"ΕΤΟΣ",{"$f":"YEAR(TODAY())","v":2019}]
[null,"Κωδικός λογιστικής","Τίτλος λογαριασμού","Πραγματικά","Προϋπολογισμός","Υπόλοιπο €","% υπολοίπου"]
[null,1000,"Διαφήμιση",{"$f":"SUMIF(ΣύνοψηΜηνιαίωνΕξόδων[Κωδικός λογιστικής],ΠίνακαςΣωρευτικώνΠοσών[[#This Row],[Κωδικός λογιστικής]],ΣύνοψηΜηνιαίωνΕξόδων[Άθροισμα])","v":{"v":0,"d":"0.00 €"}},{"v":100000,"d":"100,000.00 €"},{"$f":"IF(ΠίνακαςΣωρευτικώνΠοσών[[#This Row],[Προϋπολογισμός]]=\"\",\"\",ΠίνακαςΣωρευτικώνΠοσών[[#This Row],[Προϋπολογισμός]]-ΠίνακαςΣωρευτικώνΠοσών[[#This Row],[Πραγματικά]])","v":{"v":100000,"d":"100,000.00 €"}},{"$f":"IFERROR(ΠίνακαςΣωρευτικώνΠοσών[[#This Row],[Υπόλοιπο €]]/ΠίνακαςΣωρευτικώνΠοσών[[#This Row],[Προϋπολογισμός]],\"\")","v":{"v":1,"d":"100.00%"}}]
[null,2000,"Εξοπλισμός γραφείου",{"$f":"SUMIF(ΣύνοψηΜηνιαίωνΕξόδων[Κωδικός λογιστικής],ΠίνακαςΣωρευτικώνΠοσών[[#This Row],[Κωδικός λογιστικής]],ΣύνοψηΜηνιαίωνΕξόδων[Άθροισμα])","v":{"v":0,"d":"0.00 €"}},{"v":100000,"d":"100,000.00 €"},{"$f":"IF(ΠίνακαςΣωρευτικώνΠοσών[[#This Row],[Προϋπολογισμός]]=\"\",\"\",ΠίνακαςΣωρευτικώνΠοσών[[#This Row],[Προϋπολογισμός]]-ΠίνακαςΣωρευτικώνΠοσών[[#This Row],[Πραγματικά]])","v":{"v":100000,"d":"100,000.00 €"}},{"$f":"IFERROR(ΠίνακαςΣωρευτικώνΠοσών[[#This Row],[Υπόλοιπο €]]/ΠίνακαςΣωρευτικώνΠοσών[[#This Row],[Προϋπολογισμός]],\"\")","v":{"v":1,"d":"100.00%"}}]
[null,3000,"Εκτυπωτές",{"$f":"SUMIF(ΣύνοψηΜηνιαίωνΕξόδων[Κωδικός λογιστικής],ΠίνακαςΣωρευτικώνΠοσών[[#This Row],[Κωδικός λογιστικής]],ΣύνοψηΜηνιαίωνΕξόδων[Άθροισμα])","v":{"v":0,"d":"0.00 €"}},{"v":100000,"d":"100,000.00 €"},{"$f":"IF(ΠίνακαςΣωρευτικώνΠοσών[[#This Row],[Προϋπολογισμός]]=\"\",\"\",ΠίνακαςΣωρευτικώνΠοσών[[#This Row],[Προϋπολογισμός]]-ΠίνακαςΣωρευτικώνΠοσών[[#This Row],[Πραγματικά]])","v":{"v":100000,"d":"100,000.00 €"}},{"$f":"IFERROR(ΠίνακαςΣωρευτικώνΠοσών[[#This Row],[Υπόλοιπο €]]/ΠίνακαςΣωρευτικώνΠοσών[[#This Row],[Προϋπολογισμός]],\"\")","v":{"v":1,"d":"100.00%"}}]
[null,4000,"Κόστος διακομιστή",{"$f":"SUMIF(ΣύνοψηΜηνιαίωνΕξόδων[Κωδικός λογιστικής],ΠίνακαςΣωρευτικώνΠοσών[[#This Row],[Κωδικός λογιστικής]],ΣύνοψηΜηνιαίωνΕξόδων[Άθροισμα])","v":{"v":0,"d":"0.00 €"}},{"v":100000,"d":"100,000.00 €"},{"$f":"IF(ΠίνακαςΣωρευτικώνΠοσών[[#This Row],[Προϋπολογισμός]]=\"\",\"\",ΠίνακαςΣωρευτικώνΠοσών[[#This Row],[Προϋπολογισμός]]-ΠίνακαςΣωρευτικώνΠοσών[[#This Row],[Πραγματικά]])","v":{"v":100000,"d":"100,000.00 €"}},{"$f":"IFERROR(ΠίνακαςΣωρευτικώνΠοσών[[#This Row],[Υπόλοιπο €]]/ΠίνακαςΣωρευτικώνΠοσών[[#This Row],[Προϋπολογισμός]],\"\")","v":{"v":1,"d":"100.00%"}}]
[null,5000,"Προμήθειες",{"$f":"SUMIF(ΣύνοψηΜηνιαίωνΕξόδων[Κωδικός λογιστικής],ΠίνακαςΣωρευτικώνΠοσών[[#This Row],[Κωδικός λογιστικής]],ΣύνοψηΜηνιαίωνΕξόδων[Άθροισμα])","v":{"v":0,"d":"0.00 €"}},{"v":50000,"d":"50,000.00 €"},{"$f":"IF(ΠίνακαςΣωρευτικώνΠοσών[[#This Row],[Προϋπολογισμός]]=\"\",\"\",ΠίνακαςΣωρευτικώνΠοσών[[#This Row],[Προϋπολογισμός]]-ΠίνακαςΣωρευτικώνΠοσών[[#This Row],[Πραγματικά]])","v":{"v":50000,"d":"50,000.00 €"}},{"$f":"IFERROR(ΠίνακαςΣωρευτικώνΠοσών[[#This Row],[Υπόλοιπο €]]/ΠίνακαςΣωρευτικώνΠοσών[[#This Row],[Προϋπολογισμός]],\"\")","v":{"v":1,"d":"100.00%"}}]
[null,6000,"Έξοδα πελατών",{"$f":"SUMIF(ΣύνοψηΜηνιαίωνΕξόδων[Κωδικός λογιστικής],ΠίνακαςΣωρευτικώνΠοσών[[#This Row],[Κωδικός λογιστικής]],ΣύνοψηΜηνιαίωνΕξόδων[Άθροισμα])","v":{"v":0,"d":"0.00 €"}},{"v":25000,"d":"25,000.00 €"},{"$f":"IF(ΠίνακαςΣωρευτικώνΠοσών[[#This Row],[Προϋπολογισμός]]=\"\",\"\",ΠίνακαςΣωρευτικώνΠοσών[[#This Row],[Προϋπολογισμός]]-ΠίνακαςΣωρευτικώνΠοσών[[#This Row],[Πραγματικά]])","v":{"v":25000,"d":"25,000.00 €"}},{"$f":"IFERROR(ΠίνακαςΣωρευτικώνΠοσών[[#This Row],[Υπόλοιπο €]]/ΠίνακαςΣωρευτικώνΠοσών[[#This Row],[Προϋπολογισμός]],\"\")","v":{"v":1,"d":"100.00%"}}]
[null,7000,"Υπολογιστές",{"$f":"SUMIF(ΣύνοψηΜηνιαίωνΕξόδων[Κωδικός λογιστικής],ΠίνακαςΣωρευτικώνΠοσών[[#This Row],[Κωδικός λογιστικής]],ΣύνοψηΜηνιαίωνΕξόδων[Άθροισμα])","v":{"v":0,"d":"0.00 €"}},{"v":75000,"d":"75,000.00 €"},{"$f":"IF(ΠίνακαςΣωρευτικώνΠοσών[[#This Row],[Προϋπολογισμός]]=\"\",\"\",ΠίνακαςΣωρευτικώνΠοσών[[#This Row],[Προϋπολογισμός]]-ΠίνακαςΣωρευτικώνΠοσών[[#This Row],[Πραγματικά]])","v":{"v":75000,"d":"75,000.00 €"}},{"$f":"IFERROR(ΠίνακαςΣωρευτικώνΠοσών[[#This Row],[Υπόλοιπο €]]/ΠίνακαςΣωρευτικώνΠοσών[[#This Row],[Προϋπολογισμός]],\"\")","v":{"v":1,"d":"100.00%"}}]
[null,8000,"Ιατρικό πρόγραμμα",{"$f":"SUMIF(ΣύνοψηΜηνιαίωνΕξόδων[Κωδικός λογιστικής],ΠίνακαςΣωρευτικώνΠοσών[[#This Row],[Κωδικός λογιστικής]],ΣύνοψηΜηνιαίωνΕξόδων[Άθροισμα])","v":{"v":0,"d":"0.00 €"}},{"v":65000,"d":"65,000.00 €"},{"$f":"IF(ΠίνακαςΣωρευτικώνΠοσών[[#This Row],[Προϋπολογισμός]]=\"\",\"\",ΠίνακαςΣωρευτικώνΠοσών[[#This Row],[Προϋπολογισμός]]-ΠίνακαςΣωρευτικώνΠοσών[[#This Row],[Πραγματικά]])","v":{"v":65000,"d":"65,000.00 €"}},{"$f":"IFERROR(ΠίνακαςΣωρευτικώνΠοσών[[#This Row],[Υπόλοιπο €]]/ΠίνακαςΣωρευτικώνΠοσών[[#This Row],[Προϋπολογισμός]],\"\")","v":{"v":1,"d":"100.00%"}}]
[null,9000,"Έξοδα κτιρίου",{"$f":"SUMIF(ΣύνοψηΜηνιαίωνΕξόδων[Κωδικός λογιστικής],ΠίνακαςΣωρευτικώνΠοσών[[#This Row],[Κωδικός λογιστικής]],ΣύνοψηΜηνιαίωνΕξόδων[Άθροισμα])","v":{"v":0,"d":"0.00 €"}},{"v":125000,"d":"125,000.00 €"},{"$f":"IF(ΠίνακαςΣωρευτικώνΠοσών[[#This Row],[Προϋπολογισμός]]=\"\",\"\",ΠίνακαςΣωρευτικώνΠοσών[[#This Row],[Προϋπολογισμός]]-ΠίνακαςΣωρευτικώνΠοσών[[#This Row],[Πραγματικά]])","v":{"v":125000,"d":"125,000.00 €"}},{"$f":"IFERROR(ΠίνακαςΣωρευτικώνΠοσών[[#This Row],[Υπόλοιπο €]]/ΠίνακαςΣωρευτικώνΠοσών[[#This Row],[Προϋπολογισμός]],\"\")","v":{"v":1,"d":"100.00%"}}]
[null,10000,"Μάρκετινγκ",{"$f":"SUMIF(ΣύνοψηΜηνιαίωνΕξόδων[Κωδικός λογιστικής],ΠίνακαςΣωρευτικώνΠοσών[[#This Row],[Κωδικός λογιστικής]],ΣύνοψηΜηνιαίωνΕξόδων[Άθροισμα])","v":{"v":0,"d":"0.00 €"}},{"v":100000,"d":"100,000.00 €"},{"$f":"IF(ΠίνακαςΣωρευτικώνΠοσών[[#This Row],[Προϋπολογισμός]]=\"\",\"\",ΠίνακαςΣωρευτικώνΠοσών[[#This Row],[Προϋπολογισμός]]-ΠίνακαςΣωρευτικώνΠοσών[[#This Row],[Πραγματικά]])","v":{"v":100000,"d":"100,000.00 €"}},{"$f":"IFERROR(ΠίνακαςΣωρευτικώνΠοσών[[#This Row],[Υπόλοιπο €]]/ΠίνακαςΣωρευτικώνΠοσών[[#This Row],[Προϋπολογισμός]],\"\")","v":{"v":1,"d":"100.00%"}}]
[null,11000,"Φιλανθρωπίες",{"$f":"SUMIF(ΣύνοψηΜηνιαίωνΕξόδων[Κωδικός λογιστικής],ΠίνακαςΣωρευτικώνΠοσών[[#This Row],[Κωδικός λογιστικής]],ΣύνοψηΜηνιαίωνΕξόδων[Άθροισμα])","v":{"v":0,"d":"0.00 €"}},{"v":250000,"d":"250,000.00 €"},{"$f":"IF(ΠίνακαςΣωρευτικώνΠοσών[[#This Row],[Προϋπολογισμός]]=\"\",\"\",ΠίνακαςΣωρευτικώνΠοσών[[#This Row],[Προϋπολογισμός]]-ΠίνακαςΣωρευτικώνΠοσών[[#This Row],[Πραγματικά]])","v":{"v":250000,"d":"250,000.00 €"}},{"$f":"IFERROR(ΠίνακαςΣωρευτικώνΠοσών[[#This Row],[Υπόλοιπο €]]/ΠίνακαςΣωρευτικώνΠοσών[[#This Row],[Προϋπολογισμός]],\"\")","v":{"v":1,"d":"100.00%"}}]
[null,12000,"Χορηγίες",{"$f":"SUMIF(ΣύνοψηΜηνιαίωνΕξόδων[Κωδικός λογιστικής],ΠίνακαςΣωρευτικώνΠοσών[[#This Row],[Κωδικός λογιστικής]],ΣύνοψηΜηνιαίωνΕξόδων[Άθροισμα])","v":{"v":0,"d":"0.00 €"}},{"v":50000,"d":"50,000.00 €"},{"$f":"IF(ΠίνακαςΣωρευτικώνΠοσών[[#This Row],[Προϋπολογισμός]]=\"\",\"\",ΠίνακαςΣωρευτικώνΠοσών[[#This Row],[Προϋπολογισμός]]-ΠίνακαςΣωρευτικώνΠοσών[[#This Row],[Πραγματικά]])","v":{"v":50000,"d":"50,000.00 €"}},{"$f":"IFERROR(ΠίνακαςΣωρευτικώνΠοσών[[#This Row],[Υπόλοιπο €]]/ΠίνακαςΣωρευτικώνΠοσών[[#This Row],[Προϋπολογισμός]],\"\")","v":{"v":1,"d":"100.00%"}}]
[null,"Άθροισμα",null,{"$f":"SUBTOTAL(109,ΠίνακαςΣωρευτικώνΠοσών[Πραγματικά])","v":{"v":0,"d":"0.00 €"}},{"$f":"SUBTOTAL(109,ΠίνακαςΣωρευτικώνΠοσών[Προϋπολογισμός])","v":{"v":1140000,"d":"1,140,000.00 €"}},{"$f":"SUBTOTAL(109,ΠίνακαςΣωρευτικώνΠοσών[Υπόλοιπο €])","v":{"v":1140000,"d":"1,140,000.00 €"}},{"$f":"ΠίνακαςΣωρευτικώνΠοσών[[#Totals],[Υπόλοιπο €]]/ΠίνακαςΣωρευτικώνΠοσών[[#Totals],[Προϋπολογισμός]]","v":{"v":1,"d":"100.00%"}}]

{"sheet":"ΣΥΝΟΨΗ ΜΗΝΙΑΙΩΝ ΕΞΟΔΩΝ","index":1,"n_rows":18,"n_cols":17,"rows_kept":18,"merged":[[1,1,1,16]]}
[]
[null,"ΣΥΝΟΨΗ ΜΗΝΙΑΙΩΝ ΕΞΟΔΩΝ"]
[null,"Ένας αναλυτής για να φιλτράρετε δεδομένα κατά τίτλους λογαριασμών βρίσκεται σε αυτό το κελί.",null,{"$f":"DATEVALUE(\"1-ΙΑΝ\"&_ΕΤΟΣ)","v":{"v":43466,"d":"4346600.00%"}},{"$f":"DATEVALUE(\"1-ΦΕΒ\"&_ΕΤΟΣ)","v":{"v":43497,"d":"4349700.00%"}},{"$f":"DATEVALUE(\"1-ΜΑΡ\"&_ΕΤΟΣ)","v":{"v":43525,"d":"4352500.00%"}},{"$f":"DATEVALUE(\"1-ΑΠΡ\"&_ΕΤΟΣ)","v":{"v":43556,"d":"4355600.00%"}},{"$f":"DATEVALUE(\"1-Μαΐ\"&_ΕΤΟΣ)","v":{"v":43586,"d":"4358600.00%"}},{"$f":"DATEVALUE(\"1-ΙΟΥΝ\"&_ΕΤΟΣ)","v":{"v":43617,"d":"4361700.00%"}},{"$f":"DATEVALUE(\"1-ΙΟΥΛ\"&_ΕΤΟΣ)","v":{"v":43647,"d":"4364700.00%"}},{"$f":"DATEVALUE(\"1-ΑΥΓ\"&_ΕΤΟΣ)","v":{"v":43678,"d":"4367800.00%"}},{"$f":"DATEVALUE(\"1-ΣΕΠ\"&_ΕΤΟΣ)","v":{"v":43709,"d":"4370900.00%"}},{"$f":"DATEVALUE(\"1-ΟΚΤ\"&_ΕΤΟΣ)","v":{"v":43739,"d":"4373900.00%"}},{"$f":"DATEVALUE(\"1-ΝΟΕ\"&_ΕΤΟΣ)","v":{"v":43770,"d":"4377000.00%"}},{"$f":"DATEVALUE(\"1-ΔΕΚ\"&_ΕΤΟΣ)","v":{"v":43800,"d":"4380000.00%"}}]
[{"$nulls":3},{"$f":"EOMONTH(D3,0)","v":{"v":43496,"d":"4349600.00%"}},{"$f":"EOMONTH(E3,0)","v":{"v":43524,"d":"4352400.00%"}},{"$f":"EOMONTH(F3,0)","v":{"v":43555,"d":"4355500.00%"}},{"$f":"EOMONTH(G3,0)","v":{"v":43585,"d":"4358500.00%"}},{"$f":"EOMONTH(H3,0)","v":{"v":43616,"d":"4361600.00%"}},{"$f":"EOMONTH(I3,0)","v":{"v":43646,"d":"4364600.00%"}},{"v":43677,"d":"4367700.00%"},{"v":43708,"d":"4370800.00%"},{"v":43738,"d":"4373800.00%"},{"v":43769,"d":"4376900.00%"},{"v":43799,"d":"4379900.00%"},{"v":43830,"d":"4383000.00%"}]
[null,"Κωδικός λογιστικής","Τίτλος λογαριασμού","Ιαν","Φεβ","Μαρ","Απρ","Μαΐ","Ιουν","Ιουλ","Αυγ","Σεπ","Οκτ","Νοε","Δεκ","Άθροισμα"," "]
[null,1000,"Διαφήμιση",{"$f":"SUMIFS(ΑναλυτικάΈσοδα[Ποσό επιταγής],ΑναλυτικάΈσοδα[Κωδικός λογιστικής],ΣύνοψηΜηνιαίωνΕξόδων[[#This Row],[Κωδικός λογιστικής]],ΑναλυτικάΈσοδα[Ημερομηνία τιμολογίου],\">=\"&D$3,ΑναλυτικάΈσοδα[Ημερομηνία τιμολογίου],\"<=\"&D$4)+SUMIFS(Άλλο[Ποσό επιταγής],Άλλο[Κωδικός λογιστικής],ΣύνοψηΜηνιαίωνΕξόδων[[#This Row],[Κωδικός λογιστικής]],Άλλο[Ημερομηνία έναρξης αιτήματος επιταγής],\">=\"&DATEVALUE(\" 1 \"&ΣύνοψηΜηνιαίωνΕξόδων[[#Headers],[Ιαν]]&_ΕΤΟΣ),Άλλο[Ημερομηνία έναρξης αιτήματος επιταγής],\"<=\"&D$4)","v":{"v":0,"d":"0.00 €"}},{"$f":"SUMIFS(ΑναλυτικάΈσοδα[Ποσό επιταγής],ΑναλυτικάΈσοδα[Κωδικός λογιστικής],ΣύνοψηΜηνιαίωνΕξόδων[[#This Row],[Κωδικός λογιστικής]],ΑναλυτικάΈσοδα[Ημερομηνία τιμολογίου],\">=\"&E$3,ΑναλυτικάΈσοδα[Ημερομηνία τιμολογίου],\"<=\"&E$4)+SUMIFS(Άλλο[Ποσό επιταγής],Άλλο[Κωδικός λογιστικής],ΣύνοψηΜηνιαίωνΕξόδων[[#This Row],[Κωδικός λογιστικής]],Άλλο[Ημερομηνία έναρξης αιτήματος επιταγής],\">=\"&DATEVALUE(\" 1 \"&ΣύνοψηΜηνιαίωνΕξόδων[[#Headers],[Φεβ]]&_ΕΤΟΣ),Άλλο[Ημερομηνία έναρξης αιτήματος επιταγής],\"<=\"&E$4)","v":{"v":0,"d":"0.00 €"}},{"$f":"SUMIFS(ΑναλυτικάΈσοδα[Ποσό επιταγής],ΑναλυτικάΈσοδα[Κωδικός λογιστικής],ΣύνοψηΜηνιαίωνΕξόδων[[#This Row],[Κωδικός λογιστικής]],ΑναλυτικάΈσοδα[Ημερομηνία τιμολογίου],\">=\"&F$3,ΑναλυτικάΈσοδα[Ημερομηνία τιμολογίου],\"<=\"&F$4)+SUMIFS(Άλλο[Ποσό επιταγής],Άλλο[Κωδικός λογιστικής],ΣύνοψηΜηνιαίωνΕξόδων[[#This Row],[Κωδικός λογιστικής]],Άλλο[Ημερομηνία έναρξης αιτήματος επιταγής],\">=\"&DATEVALUE(\" 1 \"&ΣύνοψηΜηνιαίωνΕξόδων[[#Headers],[Μαρ]]&_ΕΤΟΣ),Άλλο[Ημερομηνία έναρξης αιτήματος επιταγής],\"<=\"&F$4)","v":{"v":0,"d":"0.00 €"}},{"$f":"SUMIFS(ΑναλυτικάΈσοδα[Ποσό επιταγής],ΑναλυτικάΈσοδα[Κωδικός λογιστικής],ΣύνοψηΜηνιαίωνΕξόδων[[#This Row],[Κωδικός λογιστικής]],ΑναλυτικάΈσοδα[Ημερομηνία τιμολογίου],\">=\"&G$3,ΑναλυτικάΈσοδα[Ημερομηνία τιμολογίου],\"<=\"&G$4)+SUMIFS(Άλλο[Ποσό επιταγής],Άλλο[Κωδικός λογιστικής],ΣύνοψηΜηνιαίωνΕξόδων[[#This Row],[Κωδικός λογιστικής]],Άλλο[Ημερομηνία έναρξης αιτήματος επιταγής],\">=\"&DATEVALUE(\" 1 \"&ΣύνοψηΜηνιαίωνΕξόδων[[#Headers],[Απρ]]&_ΕΤΟΣ),Άλλο[Ημερομηνία έναρξης αιτήματος επιταγής],\"<=\"&G$4)","v":{"v":0,"d":"0.00 €"}},{"$f":"SUMIFS(ΑναλυτικάΈσοδα[Ποσό επιταγής],ΑναλυτικάΈσοδα[Κωδικός λογιστικής],ΣύνοψηΜηνιαίωνΕξόδων[[#This Row],[Κωδικός λογιστικής]],ΑναλυτικάΈσοδα[Ημερομηνία τιμολογίου],\">=\"&H$3,ΑναλυτικάΈσοδα[Ημερομηνία τιμολογίου],\"<=\"&H$4)+SUMIFS(Άλλο[Ποσό επιταγής],Άλλο[Κωδικός λογιστικής],ΣύνοψηΜηνιαίωνΕξόδων[[#This Row],[Κωδικός λογιστικής]],Άλλο[Ημερομηνία έναρξης αιτήματος επιταγής],\">=\"&DATEVALUE(\" 1 \"&ΣύνοψηΜηνιαίωνΕξόδων[[#Headers],[Μαΐ]]&_ΕΤΟΣ),Άλλο[Ημερομηνία έναρξης αιτήματος επιταγής],\"<=\"&H$4)","v":{"v":0,"d":"0.00 €"}},{"$f":"SUMIFS(ΑναλυτικάΈσοδα[Ποσό επιταγής],ΑναλυτικάΈσοδα[Κωδικός λογιστικής],ΣύνοψηΜηνιαίωνΕξόδων[[#This Row],[Κωδικός λογιστικής]],ΑναλυτικάΈσοδα[Ημερομηνία τιμολογίου],\">=\"&I$3,ΑναλυτικάΈσοδα[Ημερομηνία τιμολογίου],\"<=\"&I$4)+SUMIFS(Άλλο[Ποσό επιταγής],Άλλο[Κωδικός λογιστικής],ΣύνοψηΜηνιαίωνΕξόδων[[#This Row],[Κωδικός λογιστικής]],Άλλο[Ημερομηνία έναρξης αιτήματος επιταγής],\">=\"&DATEVALUE(\" 1 \"&ΣύνοψηΜηνιαίωνΕξόδων[[#Headers],[Ιουν]]&_ΕΤΟΣ),Άλλο[Ημερομηνία έναρξης αιτήματος επιταγής],\"<=\"&I$4)","v":{"v":0,"d":"0.00 €"}},{"$f":"SUMIFS(ΑναλυτικάΈσοδα[Ποσό επιταγής],ΑναλυτικάΈσοδα[Κωδικός λογιστικής],ΣύνοψηΜηνιαίωνΕξόδων[[#This Row],[Κωδικός λογιστικής]],ΑναλυτικάΈσοδα[Ημερομηνία τιμολογίου],\">=\"&J$3,ΑναλυτικάΈσοδα[Ημερομηνία τιμολογίου],\"<=\"&J$4)+SUMIFS(Άλλο[Ποσό επιταγής],Άλλο[Κωδικός λογιστικής],ΣύνοψηΜηνιαίωνΕξόδων[[#This Row],[Κωδικός λογιστικής]],Άλλο[Ημερομηνία έναρξης αιτήματος επιταγής],\">=\"&DATEVALUE(\" 1 \"&ΣύνοψηΜηνιαίωνΕξόδων[[#Headers],[Ιουλ]]&_ΕΤΟΣ),Άλλο[Ημερομηνία έναρξης αιτήματος επιταγής],\"<=\"&J$4)","v":{"v":0,"d":"0.00 €"}},{"$f":"SUMIFS(ΑναλυτικάΈσοδα[Ποσό επιταγής],ΑναλυτικάΈσοδα[Κωδικός λογιστικής],ΣύνοψηΜηνιαίωνΕξόδων[[#This Row],[Κωδικός λογιστικής]],ΑναλυτικάΈσοδα[Ημερομηνία τιμολογίου],\">=\"&K$3,ΑναλυτικάΈσοδα[Ημερομηνία τιμολογίου],\"<=\"&K$4)+SUMIFS(Άλλο[Ποσό επιταγής],Άλλο[Κωδικός λογιστικής],ΣύνοψηΜηνιαίωνΕξόδων[[#This Row],[Κωδικός λογιστικής]],Άλλο[Ημερομηνία έναρξης αιτήματος επιταγής],\">=\"&DATEVALUE(\" 1 \"&ΣύνοψηΜηνιαίωνΕξόδων[[#Headers],[Αυγ]]&_ΕΤΟΣ),Άλλο[Ημερομηνία έναρξης αιτήματος επιταγής],\"<=\"&K$4)","v":{"v":0,"d":"0.00 €"}},{"$f":"SUMIFS(ΑναλυτικάΈσοδα[Ποσό επιταγής],ΑναλυτικάΈσοδα[Κωδικός λογιστικής],ΣύνοψηΜηνιαίωνΕξόδων[[#This Row],[Κωδικός λογιστικής]],ΑναλυτικάΈσοδα[Ημερομηνία τιμολογίου],\">=\"&L$3,ΑναλυτικάΈσοδα[Ημερομηνία τιμολογίου],\"<=\"&L$4)+SUMIFS(Άλλο[Ποσό επιταγής],Άλλο[Κωδικός λογιστικής],ΣύνοψηΜηνιαίωνΕξόδων[[#This Row],[Κωδικός λογιστικής]],Άλλο[Ημερομηνία έναρξης αιτήματος επιταγής],\">=\"&DATEVALUE(\" 1 \"&ΣύνοψηΜηνιαίωνΕξόδων[[#Headers],[Σεπ]]&_ΕΤΟΣ),Άλλο[Ημερομηνία έναρξης αιτήματος επιταγής],\"<=\"&L$4)","v":{"v":0,"d":"0.00 €"}},{"$f":"SUMIFS(ΑναλυτικάΈσοδα[Ποσό επιταγής],ΑναλυτικάΈσοδα[Κωδικός λογιστικής],ΣύνοψηΜηνιαίωνΕξόδων[[#This Row],[Κωδικός λογιστικής]],ΑναλυτικάΈσοδα[Ημερομηνία τιμολογίου],\">=\"&M$3,ΑναλυτικάΈσοδα[Ημερομηνία τιμολογίου],\"<=\"&M$4)+SUMIFS(Άλλο[Ποσό επιταγής],Άλλο[Κωδικός λογιστικής],ΣύνοψηΜηνιαίωνΕξόδων[[#This Row],[Κωδικός λογιστικής]],Άλλο[Ημερομηνία έναρξης αιτήματος επιταγής],\">=\"&DATEVALUE(\" 1 \"&ΣύνοψηΜηνιαίωνΕξόδων[[#Headers],[Οκτ]]&_ΕΤΟΣ),Άλλο[Ημερομηνία έναρξης αιτήματος επιταγής],\"<=\"&M$4)","v":{"v":0,"d":"0.00 €"}},{"$f":"SUMIFS(ΑναλυτικάΈσοδα[Ποσό επιταγής],ΑναλυτικάΈσοδα[Κωδικός λογιστικής],ΣύνοψηΜηνιαίωνΕξόδων[[#This Row],[Κωδικός λογιστικής]],ΑναλυτικάΈσοδα[Ημερομηνία τιμολογίου],\">=\"&N$3,ΑναλυτικάΈσοδα[Ημερομηνία τιμολογίου],\"<=\"&N$4)+SUMIFS(Άλλο[Ποσό επιταγής],Άλλο[Κωδικός λογιστικής],ΣύνοψηΜηνιαίωνΕξόδων[[#This Row],[Κωδικός λογιστικής]],Άλλο[Ημερομηνία έναρξης αιτήματος επιταγής],\">=\"&DATEVALUE(\" 1 \"&ΣύνοψηΜηνιαίωνΕξόδων[[#Headers],[Νοε]]&_ΕΤΟΣ),Άλλο[Ημερομηνία έναρξης αιτήματος επιταγής],\"<=\"&N$4)","v":{"v":0,"d":"0.00 €"}},{"$f":"SUMIFS(ΑναλυτικάΈσοδα[Ποσό επιταγής],ΑναλυτικάΈσοδα[Κωδικός λογιστικής],ΣύνοψηΜηνιαίωνΕξόδων[[#This Row],[Κωδικός λογιστικής]],ΑναλυτικάΈσοδα[Ημερομηνία τιμολογίου],\">=\"&O$3,ΑναλυτικάΈσοδα[Ημερομηνία τιμολογίου],\"<=\"&O$4)+SUMIFS(Άλλο[Ποσό επιταγής],Άλλο[Κωδικός λογιστικής],ΣύνοψηΜηνιαίωνΕξόδων[[#This Row],[Κωδικός λογιστικής]],Άλλο[Ημερομηνία έναρξης αιτήματος επιταγής],\">=\"&DATEVALUE(\" 1 \"&ΣύνοψηΜηνιαίωνΕξόδων[[#Headers],[Δεκ]]&_ΕΤΟΣ),Άλλο[Ημερομηνία έναρξης αιτήματος επιταγής],\"<=\"&O$4)","v":{"v":0,"d":"0.00 €"}},{"$f":"SUM(ΣύνοψηΜηνιαίωνΕξόδων[[#This Row],[Ιαν]:[Δεκ]])","v":{"v":0,"d":"0.00 €"}}]
[null,2000,"Εξοπλισμός γραφείου",{"$f":"SUMIFS(ΑναλυτικάΈσοδα[Ποσό επιταγής],ΑναλυτικάΈσοδα[Κωδικός λογιστικής],ΣύνοψηΜηνιαίωνΕξόδων[[#This Row],[Κωδικός λογιστικής]],ΑναλυτικάΈσοδα[Ημερομηνία τιμολογίου],\">=\"&D$3,ΑναλυτικάΈσοδα[Ημερομηνία τιμολογίου],\"<=\"&D$4)+SUMIFS(Άλλο[Ποσό επιταγής],Άλλο[Κωδικός λογιστικής],ΣύνοψηΜηνιαίωνΕξόδων[[#This Row],[Κωδικός λογιστικής]],Άλλο[Ημερομηνία έναρξης αιτήματος επιταγής],\">=\"&DATEVALUE(\" 1 \"&ΣύνοψηΜηνιαίωνΕξόδων[[#Headers],[Ιαν]]&_ΕΤΟΣ),Άλλο[Ημερομηνία έναρξης αιτήματος επιταγής],\"<=\"&D$4)","v":{"v":0,"d":"0.00 €"}},{"$f":"SUMIFS(ΑναλυτικάΈσοδα[Ποσό επιταγής],ΑναλυτικάΈσοδα[Κωδικός λογιστικής],ΣύνοψηΜηνιαίωνΕξόδων[[#This Row],[Κωδικός λογιστικής]],ΑναλυτικάΈσοδα[Ημερομηνία τιμολογίου],\">=\"&E$3,ΑναλυτικάΈσοδα[Ημερομηνία τιμολογίου],\"<=\"&E$4)+SUMIFS(Άλλο[Ποσό επιταγής],Άλλο[Κωδικός λογιστικής],ΣύνοψηΜηνιαίωνΕξόδων[[#This Row],[Κωδικός λογιστικής]],Άλλο[Ημερομηνία έναρξης αιτήματος επιταγής],\">=\"&DATEVALUE(\" 1 \"&ΣύνοψηΜηνιαίωνΕξόδων[[#Headers],[Φεβ]]&_ΕΤΟΣ),Άλλο[Ημερομηνία έναρξης αιτήματος επιταγής],\"<=\"&E$4)","v":{"v":0,"d":"0.00 €"}},{"$f":"SUMIFS(ΑναλυτικάΈσοδα[Ποσό επιταγής],ΑναλυτικάΈσοδα[Κωδικός λογιστικής],ΣύνοψηΜηνιαίωνΕξόδων[[#This Row],[Κωδικός λογιστικής]],ΑναλυτικάΈσοδα[Ημερομηνία τιμολογίου],\">=\"&F$3,ΑναλυτικάΈσοδα[Ημερομηνία τιμολογίου],\"<=\"&F$4)+SUMIFS(Άλλο[Ποσό επιταγής],Άλλο[Κωδικός λογιστικής],ΣύνοψηΜηνιαίωνΕξόδων[[#This Row],[Κωδικός λογιστικής]],Άλλο[Ημερομηνία έναρξης αιτήματος επιταγής],\">=\"&DATEVALUE(\" 1 \"&ΣύνοψηΜηνιαίωνΕξόδων[[#Headers],[Μαρ]]&_ΕΤΟΣ),Άλλο[Ημερομηνία έναρξης αιτήματος επιταγής],\"<=\"&F$4)","v":{"v":0,"d":"0.00 €"}},{"$f":"SUMIFS(ΑναλυτικάΈσοδα[Ποσό επιταγής],ΑναλυτικάΈσοδα[Κωδικός λογιστικής],ΣύνοψηΜηνιαίωνΕξόδων[[#This Row],[Κωδικός λογιστικής]],ΑναλυτικάΈσοδα[Ημερομηνία τιμολογίου],\">=\"&G$3,ΑναλυτικάΈσοδα[Ημερομηνία τιμολογίου],\"<=\"&G$4)+SUMIFS(Άλλο[Ποσό επιταγής],Άλλο[Κωδικός λογιστικής],ΣύνοψηΜηνιαίωνΕξόδων[[#This Row],[Κωδικός λογιστικής]],Άλλο[Ημερομηνία έναρξης αιτήματος επιταγής],\">=\"&DATEVALUE(\" 1 \"&ΣύνοψηΜηνιαίωνΕξόδων[[#Headers],[Απρ]]&_ΕΤΟΣ),Άλλο[Ημερομηνία έναρξης αιτήματος επιταγής],\"<=\"&G$4)","v":{"v":0,"d":"0.00 €"}},{"$f":"SUMIFS(ΑναλυτικάΈσοδα[Ποσό επιταγής],ΑναλυτικάΈσοδα[Κωδικός λογιστικής],ΣύνοψηΜηνιαίωνΕξόδων[[#This Row],[Κωδικός λογιστικής]],ΑναλυτικάΈσοδα[Ημερομηνία τιμολογίου],\">=\"&H$3,ΑναλυτικάΈσοδα[Ημερομηνία τιμολογίου],\"<=\"&H$4)+SUMIFS(Άλλο[Ποσό επιταγής],Άλλο[Κωδικός λογιστικής],ΣύνοψηΜηνιαίωνΕξόδων[[#This Row],[Κωδικός λογιστικής]],Άλλο[Ημερομηνία έναρξης αιτήματος επιταγής],\">=\"&DATEVALUE(\" 1 \"&ΣύνοψηΜηνιαίωνΕξόδων[[#Headers],[Μαΐ]]&_ΕΤΟΣ),Άλλο[Ημερομηνία έναρξης αιτήματος επιταγής],\"<=\"&H$4)","v":{"v":0,"d":"0.00 €"}},{"$f":"SUMIFS(ΑναλυτικάΈσοδα[Ποσό επιταγής],ΑναλυτικάΈσοδα[Κωδικός λογιστικής],ΣύνοψηΜηνιαίωνΕξόδων[[#This Row],[Κωδικός λογιστικής]],ΑναλυτικάΈσοδα[Ημερομηνία τιμολογίου],\">=\"&I$3,ΑναλυτικάΈσοδα[Ημερομηνία τιμολογίου],\"<=\"&I$4)+SUMIFS(Άλλο[Ποσό επιταγής],Άλλο[Κωδικός λογιστικής],ΣύνοψηΜηνιαίωνΕξόδων[[#This Row],[Κωδικός λογιστικής]],Άλλο[Ημερομηνία έναρξης αιτήματος επιταγής],\">=\"&DATEVALUE(\" 1 \"&ΣύνοψηΜηνιαίωνΕξόδων[[#Headers],[Ιουν]]&_ΕΤΟΣ),Άλλο[Ημερομηνία έναρξης αιτήματος επιταγής],\"<=\"&I$4)","v":{"v":0,"d":"0.00 €"}},{"$f":"SUMIFS(ΑναλυτικάΈσοδα[Ποσό επιταγής],ΑναλυτικάΈσοδα[Κωδικός λογιστικής],ΣύνοψηΜηνιαίωνΕξόδων[[#This Row],[Κωδικός λογιστικής]],ΑναλυτικάΈσοδα[Ημερομηνία τιμολογίου],\">=\"&J$3,ΑναλυτικάΈσοδα[Ημερομηνία τιμολογίου],\"<=\"&J$4)+SUMIFS(Άλλο[Ποσό επιταγής],Άλλο[Κωδικός λογιστικής],ΣύνοψηΜηνιαίωνΕξόδων[[#This Row],[Κωδικός λογιστικής]],Άλλο[Ημερομηνία έναρξης αιτήματος επιταγής],\">=\"&DATEVALUE(\" 1 \"&ΣύνοψηΜηνιαίωνΕξόδων[[#Headers],[Ιουλ]]&_ΕΤΟΣ),Άλλο[Ημερομηνία έναρξης αιτήματος επιταγής],\"<=\"&J$4)","v":{"v":0,"d":"0.00 €"}},{"$f":"SUMIFS(ΑναλυτικάΈσοδα[Ποσό επιταγής],ΑναλυτικάΈσοδα[Κωδικός λογιστικής],ΣύνοψηΜηνιαίωνΕξόδων[[#This Row],[Κωδικός λογιστικής]],ΑναλυτικάΈσοδα[Ημερομηνία τιμολογίου],\">=\"&K$3,ΑναλυτικάΈσοδα[Ημερομηνία τιμολογίου],\"<=\"&K$4)+SUMIFS(Άλλο[Ποσό επιταγής],Άλλο[Κωδικός λογιστικής],ΣύνοψηΜηνιαίωνΕξόδων[[#This Row],[Κωδικός λογιστικής]],Άλλο[Ημερομηνία έναρξης αιτήματος επιταγής],\">=\"&DATEVALUE(\" 1 \"&ΣύνοψηΜηνιαίωνΕξόδων[[#Headers],[Αυγ]]&_ΕΤΟΣ),Άλλο[Ημερομηνία έναρξης αιτήματος επιταγής],\"<=\"&K$4)","v":{"v":0,"d":"0.00 €"}},{"$f":"SUMIFS(ΑναλυτικάΈσοδα[Ποσό επιταγής],ΑναλυτικάΈσοδα[Κωδικός λογιστικής],ΣύνοψηΜηνιαίωνΕξόδων[[#This Row],[Κωδικός λογιστικής]],ΑναλυτικάΈσοδα[Ημερομηνία τιμολογίου],\">=\"&L$3,ΑναλυτικάΈσοδα[Ημερομηνία τιμολογίου],\"<=\"&L$4)+SUMIFS(Άλλο[Ποσό επιταγής],Άλλο[Κωδικός λογιστικής],ΣύνοψηΜηνιαίωνΕξόδων[[#This Row],[Κωδικός λογιστικής]],Άλλο[Ημερομηνία έναρξης αιτήματος επιταγής],\">=\"&DATEVALUE(\" 1 \"&ΣύνοψηΜηνιαίωνΕξόδων[[#Headers],[Σεπ]]&_ΕΤΟΣ),Άλλο[Ημερομηνία έναρξης αιτήματος επιταγής],\"<=\"&L$4)","v":{"v":0,"d":"0.00 €"}},{"$f":"SUMIFS(ΑναλυτικάΈσοδα[Ποσό επιταγής],ΑναλυτικάΈσοδα[Κωδικός λογιστικής],ΣύνοψηΜηνιαίωνΕξόδων[[#This Row],[Κωδικός λογιστικής]],ΑναλυτικάΈσοδα[Ημερομηνία τιμολογίου],\">=\"&M$3,ΑναλυτικάΈσοδα[Ημερομηνία τιμολογίου],\"<=\"&M$4)+SUMIFS(Άλλο[Ποσό επιταγής],Άλλο[Κωδικός λογιστικής],ΣύνοψηΜηνιαίωνΕξόδων[[#This Row],[Κωδικός λογιστικής]],Άλλο[Ημερομηνία έναρξης αιτήματος επιταγής],\">=\"&DATEVALUE(\" 1 \"&ΣύνοψηΜηνιαίωνΕξόδων[[#Headers],[Οκτ]]&_ΕΤΟΣ),Άλλο[Ημερομηνία έναρξης αιτήματος επιταγής],\"<=\"&M$4)","v":{"v":0,"d":"0.00 €"}},{"$f":"SUMIFS(ΑναλυτικάΈσοδα[Ποσό επιταγής],ΑναλυτικάΈσοδα[Κωδικός λογιστικής],ΣύνοψηΜηνιαίωνΕξόδων[[#This Row],[Κωδικός λογιστικής]],ΑναλυτικάΈσοδα[Ημερομηνία τιμολογίου],\">=\"&N$3,ΑναλυτικάΈσοδα[Ημερομηνία τιμολογίου],\"<=\"&N$4)+SUMIFS(Άλλο[Ποσό επιταγής],Άλλο[Κωδικός λογιστικής],ΣύνοψηΜηνιαίωνΕξόδων[[#This Row],[Κωδικός λογιστικής]],Άλλο[Ημερομηνία έναρξης αιτήματος επιταγής],\">=\"&DATEVALUE(\" 1 \"&ΣύνοψηΜηνιαίωνΕξόδων[[#Headers],[Νοε]]&_ΕΤΟΣ),Άλλο[Ημερομηνία έναρξης αιτήματος επιταγής],\"<=\"&N$4)","v":{"v":0,"d":"0.00 €"}},{"$f":"SUMIFS(ΑναλυτικάΈσοδα[Ποσό επιταγής],ΑναλυτικάΈσοδα[Κωδικός λογιστικής],ΣύνοψηΜηνιαίωνΕξόδων[[#This Row],[Κωδικός λογιστικής]],ΑναλυτικάΈσοδα[Ημερομηνία τιμολογίου],\">=\"&O$3,ΑναλυτικάΈσοδα[Ημερομηνία τιμολογίου],\"<=\"&O$4)+SUMIFS(Άλλο[Ποσό επιταγής],Άλλο[Κωδικός λογιστικής],ΣύνοψηΜηνιαίωνΕξόδων[[#This Row],[Κωδικός λογιστικής]],Άλλο[Ημερομηνία έναρξης αιτήματος επιταγής],\">=\"&DATEVALUE(\" 1 \"&ΣύνοψηΜηνιαίωνΕξόδων[[#Headers],[Δεκ]]&_ΕΤΟΣ),Άλλο[Ημερομηνία έναρξης αιτήματος επιταγής],\"<=\"&O$4)","v":{"v":0,"d":"0.00 €"}},{"$f":"SUM(ΣύνοψηΜηνιαίωνΕξόδων[[#This Row],[Ιαν]:[Δεκ]])","v":{"v":0,"d":"0.00 €"}}]
[null,3000,"Εκτυπωτές",{"$f":"SUMIFS(ΑναλυτικάΈσοδα[Ποσό επιταγής],ΑναλυτικάΈσοδα[Κωδικός λογιστικής],ΣύνοψηΜηνιαίωνΕξόδων[[#This Row],[Κωδικός λογιστικής]],ΑναλυτικάΈσοδα[Ημερομηνία τιμολογίου],\">=\"&D$3,ΑναλυτικάΈσοδα[Ημερομηνία τιμολογίου],\"<=\"&D$4)+SUMIFS(Άλλο[Ποσό επιταγής],Άλλο[Κωδικός λογιστικής],ΣύνοψηΜηνιαίωνΕξόδων[[#This Row],[Κωδικός λογιστικής]],Άλλο[Ημερομηνία έναρξης αιτήματος επιταγής],\">=\"&DATEVALUE(\" 1 \"&ΣύνοψηΜηνιαίωνΕξόδων[[#Headers],[Ιαν]]&_ΕΤΟΣ),Άλλο[Ημερομηνία έναρξης αιτήματος επιταγής],\"<=\"&D$4)","v":{"v":0,"d":"0.00 €"}},{"$f":"SUMIFS(ΑναλυτικάΈσοδα[Ποσό επιταγής],ΑναλυτικάΈσοδα[Κωδικός λογιστικής],ΣύνοψηΜηνιαίωνΕξόδων[[#This Row],[Κωδικός λογιστικής]],ΑναλυτικάΈσοδα[Ημερομηνία τιμολογίου],\">=\"&E$3,ΑναλυτικάΈσοδα[Ημερομηνία τιμολογίου],\"<=\"&E$4)+SUMIFS(Άλλο[Ποσό επιταγής],Άλλο[Κωδικός λογιστικής],ΣύνοψηΜηνιαίωνΕξόδων[[#This Row],[Κωδικός λογιστικής]],Άλλο[Ημερομηνία έναρξης αιτήματος επιταγής],\">=\"&DATEVALUE(\" 1 \"&ΣύνοψηΜηνιαίωνΕξόδων[[#Headers],[Φεβ]]&_ΕΤΟΣ),Άλλο[Ημερομηνία έναρξης αιτήματος επιταγής],\"<=\"&E$4)","v":{"v":0,"d":"0.00 €"}},{"$f":"SUMIFS(ΑναλυτικάΈσοδα[Ποσό επιταγής],ΑναλυτικάΈσοδα[Κωδικός λογιστικής],ΣύνοψηΜηνιαίωνΕξόδων[[#This Row],[Κωδικός λογιστικής]],ΑναλυτικάΈσοδα[Ημερομηνία τιμολογίου],\">=\"&F$3,ΑναλυτικάΈσοδα[Ημερομηνία τιμολογίου],\"<=\"&F$4)+SUMIFS(Άλλο[Ποσό επιταγής],Άλλο[Κωδικός λογιστικής],ΣύνοψηΜηνιαίωνΕξόδων[[#This Row],[Κωδικός λογιστικής]],Άλλο[Ημερομηνία έναρξης αιτήματος επιταγής],\">=\"&DATEVALUE(\" 1 \"&ΣύνοψηΜηνιαίωνΕξόδων[[#Headers],[Μαρ]]&_ΕΤΟΣ),Άλλο[Ημερομηνία έναρξης αιτήματος επιταγής],\"<=\"&F$4)","v":{"v":0,"d":"0.00 €"}},{"$f":"SUMIFS(ΑναλυτικάΈσοδα[Ποσό επιταγής],ΑναλυτικάΈσοδα[Κωδικός λογιστικής],ΣύνοψηΜηνιαίωνΕξόδων[[#This Row],[Κωδικός λογιστικής]],ΑναλυτικάΈσοδα[Ημερομηνία τιμολογίου],\">=\"&G$3,ΑναλυτικάΈσοδα[Ημερομηνία τιμολογίου],\"<=\"&G$4)+SUMIFS(Άλλο[Ποσό επιταγής],Άλλο[Κωδικός λογιστικής],ΣύνοψηΜηνιαίωνΕξόδων[[#This Row],[Κωδικός λογιστικής]],Άλλο[Ημερομηνία έναρξης αιτήματος επιταγής],\">=\"&DATEVALUE(\" 1 \"&ΣύνοψηΜηνιαίωνΕξόδων[[#Headers],[Απρ]]&_ΕΤΟΣ),Άλλο[Ημερομηνία έναρξης αιτήματος επιταγής],\"<=\"&G$4)","v":{"v":0,"d":"0.00 €"}},{"$f":"SUMIFS(ΑναλυτικάΈσοδα[Ποσό επιταγής],ΑναλυτικάΈσοδα[Κωδικός λογιστικής],ΣύνοψηΜηνιαίωνΕξόδων[[#This Row],[Κωδικός λογιστικής]],ΑναλυτικάΈσοδα[Ημερομηνία τιμολογίου],\">=\"&H$3,ΑναλυτικάΈσοδα[Ημερομηνία τιμολογίου],\"<=\"&H$4)+SUMIFS(Άλλο[Ποσό επιταγής],Άλλο[Κωδικός λογιστικής],ΣύνοψηΜηνιαίωνΕξόδων[[#This Row],[Κωδικός λογιστικής]],Άλλο[Ημερομηνία έναρξης αιτήματος επιταγής],\">=\"&DATEVALUE(\" 1 \"&ΣύνοψηΜηνιαίωνΕξόδων[[#Headers],[Μαΐ]]&_ΕΤΟΣ),Άλλο[Ημερομηνία έναρξης αιτήματος επιταγής],\"<=\"&H$4)","v":{"v":0,"d":"0.00 €"}},{"$f":"SUMIFS(ΑναλυτικάΈσοδα[Ποσό επιταγής],ΑναλυτικάΈσοδα[Κωδικός λογιστικής],ΣύνοψηΜηνιαίωνΕξόδων[[#This Row],[Κωδικός λογιστικής]],ΑναλυτικάΈσοδα[Ημερομηνία τιμολογίου],\">=\"&I$3,ΑναλυτικάΈσοδα[Ημερομηνία τιμολογίου],\"<=\"&I$4)+SUMIFS(Άλλο[Ποσό επιταγής],Άλλο[Κωδικός λογιστικής],ΣύνοψηΜηνιαίωνΕξόδων[[#This Row],[Κωδικός λογιστικής]],Άλλο[Ημερομηνία έναρξης αιτήματος επιταγής],\">=\"&DATEVALUE(\" 1 \"&ΣύνοψηΜηνιαίωνΕξόδων[[#Headers],[Ιουν]]&_ΕΤΟΣ),Άλλο[Ημερομηνία έναρξης αιτήματος επιταγής],\"<=\"&I$4)","v":{"v":0,"d":"0.00 €"}},{"$f":"SUMIFS(ΑναλυτικάΈσοδα[Ποσό επιταγής],ΑναλυτικάΈσοδα[Κωδικός λογιστικής],ΣύνοψηΜηνιαίωνΕξόδων[[#This Row],[Κωδικός λογιστικής]],ΑναλυτικάΈσοδα[Ημερομηνία τιμολογίου],\">=\"&J$3,ΑναλυτικάΈσοδα[Ημερομηνία τιμολογίου],\"<=\"&J$4)+SUMIFS(Άλλο[Ποσό επιταγής],Άλλο[Κωδικός λογιστικής],ΣύνοψηΜηνιαίωνΕξόδων[[#This Row],[Κωδικός λογιστικής]],Άλλο[Ημερομηνία έναρξης αιτήματος επιταγής],\">=\"&DATEVALUE(\" 1 \"&ΣύνοψηΜηνιαίωνΕξόδων[[#Headers],[Ιουλ]]&_ΕΤΟΣ),Άλλο[Ημερομηνία έναρξης αιτήματος επιταγής],\"<=\"&J$4)","v":{"v":0,"d":"0.00 €"}},{"$f":"SUMIFS(ΑναλυτικάΈσοδα[Ποσό επιταγής],ΑναλυτικάΈσοδα[Κωδικός λογιστικής],ΣύνοψηΜηνιαίωνΕξόδων[[#This Row],[Κωδικός λογιστικής]],ΑναλυτικάΈσοδα[Ημερομηνία τιμολογίου],\">=\"&K$3,ΑναλυτικάΈσοδα[Ημερομηνία τιμολογίου],\"<=\"&K$4)+SUMIFS(Άλλο[Ποσό επιταγής],Άλλο[Κωδικός λογιστικής],ΣύνοψηΜηνιαίωνΕξόδων[[#This Row],[Κωδικός λογιστικής]],Άλλο[Ημερομηνία έναρξης αιτήματος επιταγής],\">=\"&DATEVALUE(\" 1 \"&ΣύνοψηΜηνιαίωνΕξόδων[[#Headers],[Αυγ]]&_ΕΤΟΣ),Άλλο[Ημερομηνία έναρξης αιτήματος επιταγής],\"<=\"&K$4)","v":{"v":0,"d":"0.00 €"}},{"$f":"SUMIFS(ΑναλυτικάΈσοδα[Ποσό επιταγής],ΑναλυτικάΈσοδα[Κωδικός λογιστικής],ΣύνοψηΜηνιαίωνΕξόδων[[#This Row],[Κωδικός λογιστικής]],ΑναλυτικάΈσοδα[Ημερομηνία τιμολογίου],\">=\"&L$3,ΑναλυτικάΈσοδα[Ημερομηνία τιμολογίου],\"<=\"&L$4)+SUMIFS(Άλλο[Ποσό επιταγής],Άλλο[Κωδικός λογιστικής],ΣύνοψηΜηνιαίωνΕξόδων[[#This Row],[Κωδικός λογιστικής]],Άλλο[Ημερομηνία έναρξης αιτήματος επιταγής],\">=\"&DATEVALUE(\" 1 \"&ΣύνοψηΜηνιαίωνΕξόδων[[#Headers],[Σεπ]]&_ΕΤΟΣ),Άλλο[Ημερομηνία έναρξης αιτήματος επιταγής],\"<=\"&L$4)","v":{"v":0,"d":"0.00 €"}},{"$f":"SUMIFS(ΑναλυτικάΈσοδα[Ποσό επιταγής],ΑναλυτικάΈσοδα[Κωδικός λογιστικής],ΣύνοψηΜηνιαίωνΕξόδων[[#This Row],[Κωδικός λογιστικής]],ΑναλυτικάΈσοδα[Ημερομηνία τιμολογίου],\">=\"&M$3,ΑναλυτικάΈσοδα[Ημερομηνία τιμολογίου],\"<=\"&M$4)+SUMIFS(Άλλο[Ποσό επιταγής],Άλλο[Κωδικός λογιστικής],ΣύνοψηΜηνιαίωνΕξόδων[[#This Row],[Κωδικός λογιστικής]],Άλλο[Ημερομηνία έναρξης αιτήματος επιταγής],\">=\"&DATEVALUE(\" 1 \"&ΣύνοψηΜηνιαίωνΕξόδων[[#Headers],[Οκτ]]&_ΕΤΟΣ),Άλλο[Ημερομηνία έναρξης αιτήματος επιταγής],\"<=\"&M$4)","v":{"v":0,"d":"0.00 €"}},{"$f":"SUMIFS(ΑναλυτικάΈσοδα[Ποσό επιταγής],ΑναλυτικάΈσοδα[Κωδικός λογιστικής],ΣύνοψηΜηνιαίωνΕξόδων[[#This Row],[Κωδικός λογιστικής]],ΑναλυτικάΈσοδα[Ημερομηνία τιμολογίου],\">=\"&N$3,ΑναλυτικάΈσοδα[Ημερομηνία τιμολογίου],\"<=\"&N$4)+SUMIFS(Άλλο[Ποσό επιταγής],Άλλο[Κωδικός λογιστικής],ΣύνοψηΜηνιαίωνΕξόδων[[#This Row],[Κωδικός λογιστικής]],Άλλο[Ημερομηνία έναρξης αιτήματος επιταγής],\">=\"&DATEVALUE(\" 1 \"&ΣύνοψηΜηνιαίωνΕξόδων[[#Headers],[Νοε]]&_ΕΤΟΣ),Άλλο[Ημερομηνία έναρξης αιτήματος επιταγής],\"<=\"&N$4)","v":{"v":0,"d":"0.00 €"}},{"$f":"SUMIFS(ΑναλυτικάΈσοδα[Ποσό επιταγής],ΑναλυτικάΈσοδα[Κωδικός λογιστικής],ΣύνοψηΜηνιαίωνΕξόδων[[#This Row],[Κωδικός λογιστικής]],ΑναλυτικάΈσοδα[Ημερομηνία τιμολογίου],\">=\"&O$3,ΑναλυτικάΈσοδα[Ημερομηνία τιμολογίου],\"<=\"&O$4)+SUMIFS(Άλλο[Ποσό επιταγής],Άλλο[Κωδικός λογιστικής],ΣύνοψηΜηνιαίωνΕξόδων[[#This Row],[Κωδικός λογιστικής]],Άλλο[Ημερομηνία έναρξης αιτήματος επιταγής],\">=\"&DATEVALUE(\" 1 \"&ΣύνοψηΜηνιαίωνΕξόδων[[#Headers],[Δεκ]]&_ΕΤΟΣ),Άλλο[Ημερομηνία έναρξης αιτήματος επιταγής],\"<=\"&O$4)","v":{"v":0,"d":"0.00 €"}},{"$f":"SUM(ΣύνοψηΜηνιαίωνΕξόδων[[#This Row],[Ιαν]:[Δεκ]])","v":{"v":0,"d":"0.00 €"}}]
[null,4000,"Κόστος διακομιστή",{"$f":"SUMIFS(ΑναλυτικάΈσοδα[Ποσό επιταγής],ΑναλυτικάΈσοδα[Κωδικός λογιστικής],ΣύνοψηΜηνιαίωνΕξόδων[[#This Row],[Κωδικός λογιστικής]],ΑναλυτικάΈσοδα[Ημερομηνία τιμολογίου],\">=\"&D$3,ΑναλυτικάΈσοδα[Ημερομηνία τιμολογίου],\"<=\"&D$4)+SUMIFS(Άλλο[Ποσό επιταγής],Άλλο[Κωδικός λογιστικής],ΣύνοψηΜηνιαίωνΕξόδων[[#This Row],[Κωδικός λογιστικής]],Άλλο[Ημερομηνία έναρξης αιτήματος επιταγής],\">=\"&DATEVALUE(\" 1 \"&ΣύνοψηΜηνιαίωνΕξόδων[[#Headers],[Ιαν]]&_ΕΤΟΣ),Άλλο[Ημερομηνία έναρξης αιτήματος επιταγής],\"<=\"&D$4)","v":{"v":0,"d":"0.00 €"}},{"$f":"SUMIFS(ΑναλυτικάΈσοδα[Ποσό επιταγής],ΑναλυτικάΈσοδα[Κωδικός λογιστικής],ΣύνοψηΜηνιαίωνΕξόδων[[#This Row],[Κωδικός λογιστικής]],ΑναλυτικάΈσοδα[Ημερομηνία τιμολογίου],\">=\"&E$3,ΑναλυτικάΈσοδα[Ημερομηνία τιμολογίου],\"<=\"&E$4)+SUMIFS(Άλλο[Ποσό επιταγής],Άλλο[Κωδικός λογιστικής],ΣύνοψηΜηνιαίωνΕξόδων[[#This Row],[Κωδικός λογιστικής]],Άλλο[Ημερομηνία έναρξης αιτήματος επιταγής],\">=\"&DATEVALUE(\" 1 \"&ΣύνοψηΜηνιαίωνΕξόδων[[#Headers],[Φεβ]]&_ΕΤΟΣ),Άλλο[Ημερομηνία έναρξης αιτήματος επιταγής],\"<=\"&E$4)","v":{"v":0,"d":"0.00 €"}},{"$f":"SUMIFS(ΑναλυτικάΈσοδα[Ποσό επιταγής],ΑναλυτικάΈσοδα[Κωδικός λογιστικής],ΣύνοψηΜηνιαίωνΕξόδων[[#This Row],[Κωδικός λογιστικής]],ΑναλυτικάΈσοδα[Ημερομηνία τιμολογίου],\">=\"&F$3,ΑναλυτικάΈσοδα[Ημερομηνία τιμολογίου],\"<=\"&F$4)+SUMIFS(Άλλο[Ποσό επιταγής],Άλλο[Κωδικός λογιστικής],ΣύνοψηΜηνιαίωνΕξόδων[[#This Row],[Κωδικός λογιστικής]],Άλλο[Ημερομηνία έναρξης αιτήματος επιταγής],\">=\"&DATEVALUE(\" 1 \"&ΣύνοψηΜηνιαίωνΕξόδων[[#Headers],[Μαρ]]&_ΕΤΟΣ),Άλλο[Ημερομηνία έναρξης αιτήματος επιταγής],\"<=\"&F$4)","v":{"v":0,"d":"0.00 €"}},{"$f":"SUMIFS(ΑναλυτικάΈσοδα[Ποσό επιταγής],ΑναλυτικάΈσοδα[Κωδικός λογιστικής],ΣύνοψηΜηνιαίωνΕξόδων[[#This Row],[Κωδικός λογιστικής]],ΑναλυτικάΈσοδα[Ημερομηνία τιμολογίου],\">=\"&G$3,ΑναλυτικάΈσοδα[Ημερομηνία τιμολογίου],\"<=\"&G$4)+SUMIFS(Άλλο[Ποσό επιταγής],Άλλο[Κωδικός λογιστικής],ΣύνοψηΜηνιαίωνΕξόδων[[#This Row],[Κωδικός λογιστικής]],Άλλο[Ημερομηνία έναρξης αιτήματος επιταγής],\">=\"&DATEVALUE(\" 1 \"&ΣύνοψηΜηνιαίωνΕξόδων[[#Headers],[Απρ]]&_ΕΤΟΣ),Άλλο[Ημερομηνία έναρξης αιτήματος επιταγής],\"<=\"&G$4)","v":{"v":0,"d":"0.00 €"}},{"$f":"SUMIFS(ΑναλυτικάΈσοδα[Ποσό επιταγής],ΑναλυτικάΈσοδα[Κωδικός λογιστικής],ΣύνοψηΜηνιαίωνΕξόδων[[#This Row],[Κωδικός λογιστικής]],ΑναλυτικάΈσοδα[Ημερομηνία τιμολογίου],\">=\"&H$3,ΑναλυτικάΈσοδα[Ημερομηνία τιμολογίου],\"<=\"&H$4)+SUMIFS(Άλλο[Ποσό επιταγής],Άλλο[Κωδικός λογιστικής],ΣύνοψηΜηνιαίωνΕξόδων[[#This Row],[Κωδικός λογιστικής]],Άλλο[Ημερομηνία έναρξης αιτήματος επιταγής],\">=\"&DATEVALUE(\" 1 \"&ΣύνοψηΜηνιαίωνΕξόδων[[#Headers],[Μαΐ]]&_ΕΤΟΣ),Άλλο[Ημερομηνία έναρξης αιτήματος επιταγής],\"<=\"&H$4)","v":{"v":0,"d":"0.00 €"}},{"$f":"SUMIFS(ΑναλυτικάΈσοδα[Ποσό επιταγής],ΑναλυτικάΈσοδα[Κωδικός λογιστικής],ΣύνοψηΜηνιαίωνΕξόδων[[#This Row],[Κωδικός λογιστικής]],ΑναλυτικάΈσοδα[Ημερομηνία τιμολογίου],\">=\"&I$3,ΑναλυτικάΈσοδα[Ημερομηνία τιμολογίου],\"<=\"&I$4)+SUMIFS(Άλλο[Ποσό επιταγής],Άλλο[Κωδικός λογιστικής],ΣύνοψηΜηνιαίωνΕξόδων[[#This Row],[Κωδικός λογιστικής]],Άλλο[Ημερομηνία έναρξης αιτήματος επιταγής],\">=\"&DATEVALUE(\" 1 \"&ΣύνοψηΜηνιαίωνΕξόδων[[#Headers],[Ιουν]]&_ΕΤΟΣ),Άλλο[Ημερομηνία έναρξης αιτήματος επιταγής],\"<=\"&I$4)","v":{"v":0,"d":"0.00 €"}},{"$f":"SUMIFS(ΑναλυτικάΈσοδα[Ποσό επιταγής],ΑναλυτικάΈσοδα[Κωδικός λογιστικής],ΣύνοψηΜηνιαίωνΕξόδων[[#This Row],[Κωδικός λογιστικής]],ΑναλυτικάΈσοδα[Ημερομηνία τιμολογίου],\">=\"&J$3,ΑναλυτικάΈσοδα[Ημερομηνία τιμολογίου],\"<=\"&J$4)+SUMIFS(Άλλο[Ποσό επιταγής],Άλλο[Κωδικός λογιστικής],ΣύνοψηΜηνιαίωνΕξόδων[[#This Row],[Κωδικός λογιστικής]],Άλλο[Ημερομηνία έναρξης αιτήματος επιταγής],\">=\"&DATEVALUE(\" 1 \"&ΣύνοψηΜηνιαίωνΕξόδων[[#Headers],[Ιουλ]]&_ΕΤΟΣ),Άλλο[Ημερομηνία έναρξης αιτήματος επιταγής],\"<=\"&J$4)","v":{"v":0,"d":"0.00 €"}},{"$f":"SUMIFS(ΑναλυτικάΈσοδα[Ποσό επιταγής],ΑναλυτικάΈσοδα[Κωδικός λογιστικής],ΣύνοψηΜηνιαίωνΕξόδων[[#This Row],[Κωδικός λογιστικής]],ΑναλυτικάΈσοδα[Ημερομηνία τιμολογίου],\">=\"&K$3,ΑναλυτικάΈσοδα[Ημερομηνία τιμολογίου],\"<=\"&K$4)+SUMIFS(Άλλο[Ποσό επιταγής],Άλλο[Κωδικός λογιστικής],ΣύνοψηΜηνιαίωνΕξόδων[[#This Row],[Κωδικός λογιστικής]],Άλλο[Ημερομηνία έναρξης αιτήματος επιταγής],\">=\"&DATEVALUE(\" 1 \"&ΣύνοψηΜηνιαίωνΕξόδων[[#Headers],[Αυγ]]&_ΕΤΟΣ),Άλλο[Ημερομηνία έναρξης αιτήματος επιταγής],\"<=\"&K$4)","v":{"v":0,"d":"0.00 €"}},{"$f":"SUMIFS(ΑναλυτικάΈσοδα[Ποσό επιταγής],ΑναλυτικάΈσοδα[Κωδικός λογιστικής],ΣύνοψηΜηνιαίωνΕξόδων[[#This Row],[Κωδικός λογιστικής]],ΑναλυτικάΈσοδα[Ημερομηνία τιμολογίου],\">=\"&L$3,ΑναλυτικάΈσοδα[Ημερομηνία τιμολογίου],\"<=\"&L$4)+SUMIFS(Άλλο[Ποσό επιταγής],Άλλο[Κωδικός λογιστικής],ΣύνοψηΜηνιαίωνΕξόδων[[#This Row],[Κωδικός λογιστικής]],Άλλο[Ημερομηνία έναρξης αιτήματος επιταγής],\">=\"&DATEVALUE(\" 1 \"&ΣύνοψηΜηνιαίωνΕξόδων[[#Headers],[Σεπ]]&_ΕΤΟΣ),Άλλο[Ημερομηνία έναρξης αιτήματος επιταγής],\"<=\"&L$4)","v":{"v":0,"d":"0.00 €"}},{"$f":"SUMIFS(ΑναλυτικάΈσοδα[Ποσό επιταγής],ΑναλυτικάΈσοδα[Κωδικός λογιστικής],ΣύνοψηΜηνιαίωνΕξόδων[[#This Row],[Κωδικός λογιστικής]],ΑναλυτικάΈσοδα[Ημερομηνία τιμολογίου],\">=\"&M$3,ΑναλυτικάΈσοδα[Ημερομηνία τιμολογίου],\"<=\"&M$4)+SUMIFS(Άλλο[Ποσό επιταγής],Άλλο[Κωδικός λογιστικής],ΣύνοψηΜηνιαίωνΕξόδων[[#This Row],[Κωδικός λογιστικής]],Άλλο[Ημερομηνία έναρξης αιτήματος επιταγής],\">=\"&DATEVALUE(\" 1 \"&ΣύνοψηΜηνιαίωνΕξόδων[[#Headers],[Οκτ]]&_ΕΤΟΣ),Άλλο[Ημερομηνία έναρξης αιτήματος επιταγής],\"<=\"&M$4)","v":{"v":0,"d":"0.00 €"}},{"$f":"SUMIFS(ΑναλυτικάΈσοδα[Ποσό επιταγής],ΑναλυτικάΈσοδα[Κωδικός λογιστικής],ΣύνοψηΜηνιαίωνΕξόδων[[#This Row],[Κωδικός λογιστικής]],ΑναλυτικάΈσοδα[Ημερομηνία τιμολογίου],\">=\"&N$3,ΑναλυτικάΈσοδα[Ημερομηνία τιμολογίου],\"<=\"&N$4)+SUMIFS(Άλλο[Ποσό επιταγής],Άλλο[Κωδικός λογιστικής],ΣύνοψηΜηνιαίωνΕξόδων[[#This Row],[Κωδικός λογιστικής]],Άλλο[Ημερομηνία έναρξης αιτήματος επιταγής],\">=\"&DATEVALUE(\" 1 \"&ΣύνοψηΜηνιαίωνΕξόδων[[#Headers],[Νοε]]&_ΕΤΟΣ),Άλλο[Ημερομηνία έναρξης αιτήματος επιταγής],\"<=\"&N$4)","v":{"v":0,"d":"0.00 €"}},{"$f":"SUMIFS(ΑναλυτικάΈσοδα[Ποσό επιταγής],ΑναλυτικάΈσοδα[Κωδικός λογιστικής],ΣύνοψηΜηνιαίωνΕξόδων[[#This Row],[Κωδικός λογιστικής]],ΑναλυτικάΈσοδα[Ημερομηνία τιμολογίου],\">=\"&O$3,ΑναλυτικάΈσοδα[Ημερομηνία τιμολογίου],\"<=\"&O$4)+SUMIFS(Άλλο[Ποσό επιταγής],Άλλο[Κωδικός λογιστικής],ΣύνοψηΜηνιαίωνΕξόδων[[#This Row],[Κωδικός λογιστικής]],Άλλο[Ημερομηνία έναρξης αιτήματος επιταγής],\">=\"&DATEVALUE(\" 1 \"&ΣύνοψηΜηνιαίωνΕξόδων[[#Headers],[Δεκ]]&_ΕΤΟΣ),Άλλο[Ημερομηνία έναρξης αιτήματος επιταγής],\"<=\"&O$4)","v":{"v":0,"d":"0.00 €"}},{"$f":"SUM(ΣύνοψηΜηνιαίωνΕξόδων[[#This Row],[Ιαν]:[Δεκ]])","v":{"v":0,"d":"0.00 €"}}]
[null,5000,"Προμήθειες",{"$f":"SUMIFS(ΑναλυτικάΈσοδα[Ποσό επιταγής],ΑναλυτικάΈσοδα[Κωδικός λογιστικής],ΣύνοψηΜηνιαίωνΕξόδων[[#This Row],[Κωδικός λογιστικής]],ΑναλυτικάΈσοδα[Ημερομηνία τιμολογίου],\">=\"&D$3,ΑναλυτικάΈσοδα[Ημερομηνία τιμολογίου],\"<=\"&D$4)+SUMIFS(Άλλο[Ποσό επιταγής],Άλλο[Κωδικός λογιστικής],ΣύνοψηΜηνιαίωνΕξόδων[[#This Row],[Κωδικός λογιστικής]],Άλλο[Ημερομηνία έναρξης αιτήματος επιταγής],\">=\"&DATEVALUE(\" 1 \"&ΣύνοψηΜηνιαίωνΕξόδων[[#Headers],[Ιαν]]&_ΕΤΟΣ),Άλλο[Ημερομηνία έναρξης αιτήματος επιταγής],\"<=\"&D$4)","v":{"v":0,"d":"0.00 €"}},{"$f":"SUMIFS(ΑναλυτικάΈσοδα[Ποσό επιταγής],ΑναλυτικάΈσοδα[Κωδικός λογιστικής],ΣύνοψηΜηνιαίωνΕξόδων[[#This Row],[Κωδικός λογιστικής]],ΑναλυτικάΈσοδα[Ημερομηνία τιμολογίου],\">=\"&E$3,ΑναλυτικάΈσοδα[Ημερομηνία τιμολογίου],\"<=\"&E$4)+SUMIFS(Άλλο[Ποσό επιταγής],Άλλο[Κωδικός λογιστικής],ΣύνοψηΜηνιαίωνΕξόδων[[#This Row],[Κωδικός λογιστικής]],Άλλο[Ημερομηνία έναρξης αιτήματος επιταγής],\">=\"&DATEVALUE(\" 1 \"&ΣύνοψηΜηνιαίωνΕξόδων[[#Headers],[Φεβ]]&_ΕΤΟΣ),Άλλο[Ημερομηνία έναρξης αιτήματος επιταγής],\"<=\"&E$4)","v":{"v":0,"d":"0.00 €"}},{"$f":"SUMIFS(ΑναλυτικάΈσοδα[Ποσό επιταγής],ΑναλυτικάΈσοδα[Κωδικός λογιστικής],ΣύνοψηΜηνιαίωνΕξόδων[[#This Row],[Κωδικός λογιστικής]],ΑναλυτικάΈσοδα[Ημερομηνία τιμολογίου],\">=\"&F$3,ΑναλυτικάΈσοδα[Ημερομηνία τιμολογίου],\"<=\"&F$4)+SUMIFS(Άλλο[Ποσό επιταγής],Άλλο[Κωδικός λογιστικής],ΣύνοψηΜηνιαίωνΕξόδων[[#This Row],[Κωδικός λογιστικής]],Άλλο[Ημερομηνία έναρξης αιτήματος επιταγής],\">=\"&DATEVALUE(\" 1 \"&ΣύνοψηΜηνιαίωνΕξόδων[[#Headers],[Μαρ]]&_ΕΤΟΣ),Άλλο[Ημερομηνία έναρξης αιτήματος επιταγής],\"<=\"&F$4)","v":{"v":0,"d":"0.00 €"}},{"$f":"SUMIFS(ΑναλυτικάΈσοδα[Ποσό επιταγής],ΑναλυτικάΈσοδα[Κωδικός λογιστικής],ΣύνοψηΜηνιαίωνΕξόδων[[#This Row],[Κωδικός λογιστικής]],ΑναλυτικάΈσοδα[Ημερομηνία τιμολογίου],\">=\"&G$3,ΑναλυτικάΈσοδα[Ημερομηνία τιμολογίου],\"<=\"&G$4)+SUMIFS(Άλλο[Ποσό επιταγής],Άλλο[Κωδικός λογιστικής],ΣύνοψηΜηνιαίωνΕξόδων[[#This Row],[Κωδικός λογιστικής]],Άλλο[Ημερομηνία έναρξης αιτήματος επιταγής],\">=\"&DATEVALUE(\" 1 \"&ΣύνοψηΜηνιαίωνΕξόδων[[#Headers],[Απρ]]&_ΕΤΟΣ),Άλλο[Ημερομηνία έναρξης αιτήματος επιταγής],\"<=\"&G$4)","v":{"v":0,"d":"0.00 €"}},{"$f":"SUMIFS(ΑναλυτικάΈσοδα[Ποσό επιταγής],ΑναλυτικάΈσοδα[Κωδικός λογιστικής],ΣύνοψηΜηνιαίωνΕξόδων[[#This Row],[Κωδικός λογιστικής]],ΑναλυτικάΈσοδα[Ημερομηνία τιμολογίου],\">=\"&H$3,ΑναλυτικάΈσοδα[Ημερομηνία τιμολογίου],\"<=\"&H$4)+SUMIFS(Άλλο[Ποσό επιταγής],Άλλο[Κωδικός λογιστικής],ΣύνοψηΜηνιαίωνΕξόδων[[#This Row],[Κωδικός λογιστικής]],Άλλο[Ημερομηνία έναρξης αιτήματος επιταγής],\">=\"&DATEVALUE(\" 1 \"&ΣύνοψηΜηνιαίωνΕξόδων[[#Headers],[Μαΐ]]&_ΕΤΟΣ),Άλλο[Ημερομηνία έναρξης αιτήματος επιταγής],\"<=\"&H$4)","v":{"v":0,"d":"0.00 €"}},{"$f":"SUMIFS(ΑναλυτικάΈσοδα[Ποσό επιταγής],ΑναλυτικάΈσοδα[Κωδικός λογιστικής],ΣύνοψηΜηνιαίωνΕξόδων[[#This Row],[Κωδικός λογιστικής]],ΑναλυτικάΈσοδα[Ημερομηνία τιμολογίου],\">=\"&I$3,ΑναλυτικάΈσοδα[Ημερομηνία τιμολογίου],\"<=\"&I$4)+SUMIFS(Άλλο[Ποσό επιταγής],Άλλο[Κωδικός λογιστικής],ΣύνοψηΜηνιαίωνΕξόδων[[#This Row],[Κωδικός λογιστικής]],Άλλο[Ημερομηνία έναρξης αιτήματος επιταγής],\">=\"&DATEVALUE(\" 1 \"&ΣύνοψηΜηνιαίωνΕξόδων[[#Headers],[Ιουν]]&_ΕΤΟΣ),Άλλο[Ημερομηνία έναρξης αιτήματος επιταγής],\"<=\"&I$4)","v":{"v":0,"d":"0.00 €"}},{"$f":"SUMIFS(ΑναλυτικάΈσοδα[Ποσό επιταγής],ΑναλυτικάΈσοδα[Κωδικός λογιστικής],ΣύνοψηΜηνιαίωνΕξόδων[[#This Row],[Κωδικός λογιστικής]],ΑναλυτικάΈσοδα[Ημερομηνία τιμολογίου],\">=\"&J$3,ΑναλυτικάΈσοδα[Ημερομηνία τιμολογίου],\"<=\"&J$4)+SUMIFS(Άλλο[Ποσό επιταγής],Άλλο[Κωδικός λογιστικής],ΣύνοψηΜηνιαίωνΕξόδων[[#This Row],[Κωδικός λογιστικής]],Άλλο[Ημερομηνία έναρξης αιτήματος επιταγής],\">=\"&DATEVALUE(\" 1 \"&ΣύνοψηΜηνιαίωνΕξόδων[[#Headers],[Ιουλ]]&_ΕΤΟΣ),Άλλο[Ημερομηνία έναρξης αιτήματος επιταγής],\"<=\"&J$4)","v":{"v":0,"d":"0.00 €"}},{"$f":"SUMIFS(ΑναλυτικάΈσοδα[Ποσό επιταγής],ΑναλυτικάΈσοδα[Κωδικός λογιστικής],ΣύνοψηΜηνιαίωνΕξόδων[[#This Row],[Κωδικός λογιστικής]],ΑναλυτικάΈσοδα[Ημερομηνία τιμολογίου],\">=\"&K$3,ΑναλυτικάΈσοδα[Ημερομηνία τιμολογίου],\"<=\"&K$4)+SUMIFS(Άλλο[Ποσό επιταγής],Άλλο[Κωδικός λογιστικής],ΣύνοψηΜηνιαίωνΕξόδων[[#This Row],[Κωδικός λογιστικής]],Άλλο[Ημερομηνία έναρξης αιτήματος επιταγής],\">=\"&DATEVALUE(\" 1 \"&ΣύνοψηΜηνιαίωνΕξόδων[[#Headers],[Αυγ]]&_ΕΤΟΣ),Άλλο[Ημερομηνία έναρξης αιτήματος επιταγής],\"<=\"&K$4)","v":{"v":0,"d":"0.00 €"}},{"$f":"SUMIFS(ΑναλυτικάΈσοδα[Ποσό επιταγής],ΑναλυτικάΈσοδα[Κωδικός λογιστικής],ΣύνοψηΜηνιαίωνΕξόδων[[#This Row],[Κωδικός λογιστικής]],ΑναλυτικάΈσοδα[Ημερομηνία τιμολογίου],\">=\"&L$3,ΑναλυτικάΈσοδα[Ημερομηνία τιμολογίου],\"<=\"&L$4)+SUMIFS(Άλλο[Ποσό επιταγής],Άλλο[Κωδικός λογιστικής],ΣύνοψηΜηνιαίωνΕξόδων[[#This Row],[Κωδικός λογιστικής]],Άλλο[Ημερομηνία έναρξης αιτήματος επιταγής],\">=\"&DATEVALUE(\" 1 \"&ΣύνοψηΜηνιαίωνΕξόδων[[#Headers],[Σεπ]]&_ΕΤΟΣ),Άλλο[Ημερομηνία έναρξης αιτήματος επιταγής],\"<=\"&L$4)","v":{"v":0,"d":"0.00 €"}},{"$f":"SUMIFS(ΑναλυτικάΈσοδα[Ποσό επιταγής],ΑναλυτικάΈσοδα[Κωδικός λογιστικής],ΣύνοψηΜηνιαίωνΕξόδων[[#This Row],[Κωδικός λογιστικής]],ΑναλυτικάΈσοδα[Ημερομηνία τιμολογίου],\">=\"&M$3,ΑναλυτικάΈσοδα[Ημερομηνία τιμολογίου],\"<=\"&M$4)+SUMIFS(Άλλο[Ποσό επιταγής],Άλλο[Κωδικός λογιστικής],ΣύνοψηΜηνιαίωνΕξόδων[[#This Row],[Κωδικός λογιστικής]],Άλλο[Ημερομηνία έναρξης αιτήματος επιταγής],\">=\"&DATEVALUE(\" 1 \"&ΣύνοψηΜηνιαίωνΕξόδων[[#Headers],[Οκτ]]&_ΕΤΟΣ),Άλλο[Ημερομηνία έναρξης αιτήματος επιταγής],\"<=\"&M$4)","v":{"v":0,"d":"0.00 €"}},{"$f":"SUMIFS(ΑναλυτικάΈσοδα[Ποσό επιταγής],ΑναλυτικάΈσοδα[Κωδικός λογιστικής],ΣύνοψηΜηνιαίωνΕξόδων[[#This Row],[Κωδικός λογιστικής]],ΑναλυτικάΈσοδα[Ημερομηνία τιμολογίου],\">=\"&N$3,ΑναλυτικάΈσοδα[Ημερομηνία τιμολογίου],\"<=\"&N$4)+SUMIFS(Άλλο[Ποσό επιταγής],Άλλο[Κωδικός λογιστικής],ΣύνοψηΜηνιαίωνΕξόδων[[#This Row],[Κωδικός λογιστικής]],Άλλο[Ημερομηνία έναρξης αιτήματος επιταγής],\">=\"&DATEVALUE(\" 1 \"&ΣύνοψηΜηνιαίωνΕξόδων[[#Headers],[Νοε]]&_ΕΤΟΣ),Άλλο[Ημερομηνία έναρξης αιτήματος επιταγής],\"<=\"&N$4)","v":{"v":0,"d":"0.00 €"}},{"$f":"SUMIFS(ΑναλυτικάΈσοδα[Ποσό επιταγής],ΑναλυτικάΈσοδα[Κωδικός λογιστικής],ΣύνοψηΜηνιαίωνΕξόδων[[#This Row],[Κωδικός λογιστικής]],ΑναλυτικάΈσοδα[Ημερομηνία τιμολογίου],\">=\"&O$3,ΑναλυτικάΈσοδα[Ημερομηνία τιμολογίου],\"<=\"&O$4)+SUMIFS(Άλλο[Ποσό επιταγής],Άλλο[Κωδικός λογιστικής],ΣύνοψηΜηνιαίωνΕξόδων[[#This Row],[Κωδικός λογιστικής]],Άλλο[Ημερομηνία έναρξης αιτήματος επιταγής],\">=\"&DATEVALUE(\" 1 \"&ΣύνοψηΜηνιαίωνΕξόδων[[#Headers],[Δεκ]]&_ΕΤΟΣ),Άλλο[Ημερομηνία έναρξης αιτήματος επιταγής],\"<=\"&O$4)","v":{"v":0,"d":"0.00 €"}},{"$f":"SUM(ΣύνοψηΜηνιαίωνΕξόδων[[#This Row],[Ιαν]:[Δεκ]])","v":{"v":0,"d":"0.00 €"}}]
[null,6000,"Έξοδα πελατών",{"$f":"SUMIFS(ΑναλυτικάΈσοδα[Ποσό επιταγής],ΑναλυτικάΈσοδα[Κωδικός λογιστικής],ΣύνοψηΜηνιαίωνΕξόδων[[#This Row],[Κωδικός λογιστικής]],ΑναλυτικάΈσοδα[Ημερομηνία τιμολογίου],\">=\"&D$3,ΑναλυτικάΈσοδα[Ημερομηνία τιμολογίου],\"<=\"&D$4)+SUMIFS(Άλλο[Ποσό επιταγής],Άλλο[Κωδικός λογιστικής],ΣύνοψηΜηνιαίωνΕξόδων[[#This Row],[Κωδικός λογιστικής]],Άλλο[Ημερομηνία έναρξης αιτήματος επιταγής],\">=\"&DATEVALUE(\" 1 \"&ΣύνοψηΜηνιαίωνΕξόδων[[#Headers],[Ιαν]]&_ΕΤΟΣ),Άλλο[Ημερομηνία έναρξης αιτήματος επιταγής],\"<=\"&D$4)","v":{"v":0,"d":"0.00 €"}},{"$f":"SUMIFS(ΑναλυτικάΈσοδα[Ποσό επιταγής],ΑναλυτικάΈσοδα[Κωδικός λογιστικής],ΣύνοψηΜηνιαίωνΕξόδων[[#This Row],[Κωδικός λογιστικής]],ΑναλυτικάΈσοδα[Ημερομηνία τιμολογίου],\">=\"&E$3,ΑναλυτικάΈσοδα[Ημερομηνία τιμολογίου],\"<=\"&E$4)+SUMIFS(Άλλο[Ποσό επιταγής],Άλλο[Κωδικός λογιστικής],ΣύνοψηΜηνιαίωνΕξόδων[[#This Row],[Κωδικός λογιστικής]],Άλλο[Ημερομηνία έναρξης αιτήματος επιταγής],\">=\"&DATEVALUE(\" 1 \"&ΣύνοψηΜηνιαίωνΕξόδων[[#Headers],[Φεβ]]&_ΕΤΟΣ),Άλλο[Ημερομηνία έναρξης αιτήματος επιταγής],\"<=\"&E$4)","v":{"v":0,"d":"0.00 €"}},{"$f":"SUMIFS(ΑναλυτικάΈσοδα[Ποσό επιταγής],ΑναλυτικάΈσοδα[Κωδικός λογιστικής],ΣύνοψηΜηνιαίωνΕξόδων[[#This Row],[Κωδικός λογιστικής]],ΑναλυτικάΈσοδα[Ημερομηνία τιμολογίου],\">=\"&F$3,ΑναλυτικάΈσοδα[Ημερομηνία τιμολογίου],\"<=\"&F$4)+SUMIFS(Άλλο[Ποσό επιταγής],Άλλο[Κωδικός λογιστικής],ΣύνοψηΜηνιαίωνΕξόδων[[#This Row],[Κωδικός λογιστικής]],Άλλο[Ημερομηνία έναρξης αιτήματος επιταγής],\">=\"&DATEVALUE(\" 1 \"&ΣύνοψηΜηνιαίωνΕξόδων[[#Headers],[Μαρ]]&_ΕΤΟΣ),Άλλο[Ημερομηνία έναρξης αιτήματος επιταγής],\"<=\"&F$4)","v":{"v":0,"d":"0.00 €"}},{"$f":"SUMIFS(ΑναλυτικάΈσοδα[Ποσό επιταγής],ΑναλυτικάΈσοδα[Κωδικός λογιστικής],ΣύνοψηΜηνιαίωνΕξόδων[[#This Row],[Κωδικός λογιστικής]],ΑναλυτικάΈσοδα[Ημερομηνία τιμολογίου],\">=\"&G$3,ΑναλυτικάΈσοδα[Ημερομηνία τιμολογίου],\"<=\"&G$4)+SUMIFS(Άλλο[Ποσό επιταγής],Άλλο[Κωδικός λογιστικής],ΣύνοψηΜηνιαίωνΕξόδων[[#This Row],[Κωδικός λογιστικής]],Άλλο[Ημερομηνία έναρξης αιτήματος επιταγής],\">=\"&DATEVALUE(\" 1 \"&ΣύνοψηΜηνιαίωνΕξόδων[[#Headers],[Απρ]]&_ΕΤΟΣ),Άλλο[Ημερομηνία έναρξης αιτήματος επιταγής],\"<=\"&G$4)","v":{"v":0,"d":"0.00 €"}},{"$f":"SUMIFS(ΑναλυτικάΈσοδα[Ποσό επιταγής],ΑναλυτικάΈσοδα[Κωδικός λογιστικής],ΣύνοψηΜηνιαίωνΕξόδων[[#This Row],[Κωδικός λογιστικής]],ΑναλυτικάΈσοδα[Ημερομηνία τιμολογίου],\">=\"&H$3,ΑναλυτικάΈσοδα[Ημερομηνία τιμολογίου],\"<=\"&H$4)+SUMIFS(Άλλο[Ποσό επιταγής],Άλλο[Κωδικός λογιστικής],ΣύνοψηΜηνιαίωνΕξόδων[[#This Row],[Κωδικός λογιστικής]],Άλλο[Ημερομηνία έναρξης αιτήματος επιταγής],\">=\"&DATEVALUE(\" 1 \"&ΣύνοψηΜηνιαίωνΕξόδων[[#Headers],[Μαΐ]]&_ΕΤΟΣ),Άλλο[Ημερομηνία έναρξης αιτήματος επιταγής],\"<=\"&H$4)","v":{"v":0,"d":"0.00 €"}},{"$f":"SUMIFS(ΑναλυτικάΈσοδα[Ποσό επιταγής],ΑναλυτικάΈσοδα[Κωδικός λογιστικής],ΣύνοψηΜηνιαίωνΕξόδων[[#This Row],[Κωδικός λογιστικής]],ΑναλυτικάΈσοδα[Ημερομηνία τιμολογίου],\">=\"&I$3,ΑναλυτικάΈσοδα[Ημερομηνία τιμολογίου],\"<=\"&I$4)+SUMIFS(Άλλο[Ποσό επιταγής],Άλλο[Κωδικός λογιστικής],ΣύνοψηΜηνιαίωνΕξόδων[[#This Row],[Κωδικός λογιστικής]],Άλλο[Ημερομηνία έναρξης αιτήματος επιταγής],\">=\"&DATEVALUE(\" 1 \"&ΣύνοψηΜηνιαίωνΕξόδων[[#Headers],[Ιουν]]&_ΕΤΟΣ),Άλλο[Ημερομηνία έναρξης αιτήματος επιταγής],\"<=\"&I$4)","v":{"v":0,"d":"0.00 €"}},{"$f":"SUMIFS(ΑναλυτικάΈσοδα[Ποσό επιταγής],ΑναλυτικάΈσοδα[Κωδικός λογιστικής],ΣύνοψηΜηνιαίωνΕξόδων[[#This Row],[Κωδικός λογιστικής]],ΑναλυτικάΈσοδα[Ημερομηνία τιμολογίου],\">=\"&J$3,ΑναλυτικάΈσοδα[Ημερομηνία τιμολογίου],\"<=\"&J$4)+SUMIFS(Άλλο[Ποσό επιταγής],Άλλο[Κωδικός λογιστικής],ΣύνοψηΜηνιαίωνΕξόδων[[#This Row],[Κωδικός λογιστικής]],Άλλο[Ημερομηνία έναρξης αιτήματος επιταγής],\">=\"&DATEVALUE(\" 1 \"&ΣύνοψηΜηνιαίωνΕξόδων[[#Headers],[Ιουλ]]&_ΕΤΟΣ),Άλλο[Ημερομηνία έναρξης αιτήματος επιταγής],\"<=\"&J$4)","v":{"v":0,"d":"0.00 €"}},{"$f":"SUMIFS(ΑναλυτικάΈσοδα[Ποσό επιταγής],ΑναλυτικάΈσοδα[Κωδικός λογιστικής],ΣύνοψηΜηνιαίωνΕξόδων[[#This Row],[Κωδικός λογιστικής]],ΑναλυτικάΈσοδα[Ημερομηνία τιμολογίου],\">=\"&K$3,ΑναλυτικάΈσοδα[Ημερομηνία τιμολογίου],\"<=\"&K$4)+SUMIFS(Άλλο[Ποσό επιταγής],Άλλο[Κωδικός λογιστικής],ΣύνοψηΜηνιαίωνΕξόδων[[#This Row],[Κωδικός λογιστικής]],Άλλο[Ημερομηνία έναρξης αιτήματος επιταγής],\">=\"&DATEVALUE(\" 1 \"&ΣύνοψηΜηνιαίωνΕξόδων[[#Headers],[Αυγ]]&_ΕΤΟΣ),Άλλο[Ημερομηνία έναρξης αιτήματος επιταγής],\"<=\"&K$4)","v":{"v":0,"d":"0.00 €"}},{"$f":"SUMIFS(ΑναλυτικάΈσοδα[Ποσό επιταγής],ΑναλυτικάΈσοδα[Κωδικός λογιστικής],ΣύνοψηΜηνιαίωνΕξόδων[[#This Row],[Κωδικός λογιστικής]],ΑναλυτικάΈσοδα[Ημερομηνία τιμολογίου],\">=\"&L$3,ΑναλυτικάΈσοδα[Ημερομηνία τιμολογίου],\"<=\"&L$4)+SUMIFS(Άλλο[Ποσό επιταγής],Άλλο[Κωδικός λογιστικής],ΣύνοψηΜηνιαίωνΕξόδων[[#This Row],[Κωδικός λογιστικής]],Άλλο[Ημερομηνία έναρξης αιτήματος επιταγής],\">=\"&DATEVALUE(\" 1 \"&ΣύνοψηΜηνιαίωνΕξόδων[[#Headers],[Σεπ]]&_ΕΤΟΣ),Άλλο[Ημερομηνία έναρξης αιτήματος επιταγής],\"<=\"&L$4)","v":{"v":0,"d":"0.00 €"}},{"$f":"SUMIFS(ΑναλυτικάΈσοδα[Ποσό επιταγής],ΑναλυτικάΈσοδα[Κωδικός λογιστικής],ΣύνοψηΜηνιαίωνΕξόδων[[#This Row],[Κωδικός λογιστικής]],ΑναλυτικάΈσοδα[Ημερομηνία τιμολογίου],\">=\"&M$3,ΑναλυτικάΈσοδα[Ημερομηνία τιμολογίου],\"<=\"&M$4)+SUMIFS(Άλλο[Ποσό επιταγής],Άλλο[Κωδικός λογιστικής],ΣύνοψηΜηνιαίωνΕξόδων[[#This Row],[Κωδικός λογιστικής]],Άλλο[Ημερομηνία έναρξης αιτήματος επιταγής],\">=\"&DATEVALUE(\" 1 \"&ΣύνοψηΜηνιαίωνΕξόδων[[#Headers],[Οκτ]]&_ΕΤΟΣ),Άλλο[Ημερομηνία έναρξης αιτήματος επιταγής],\"<=\"&M$4)","v":{"v":0,"d":"0.00 €"}},{"$f":"SUMIFS(ΑναλυτικάΈσοδα[Ποσό επιταγής],ΑναλυτικάΈσοδα[Κωδικός λογιστικής],ΣύνοψηΜηνιαίωνΕξόδων[[#This Row],[Κωδικός λογιστικής]],ΑναλυτικάΈσοδα[Ημερομηνία τιμολογίου],\">=\"&N$3,ΑναλυτικάΈσοδα[Ημερομηνία τιμολογίου],\"<=\"&N$4)+SUMIFS(Άλλο[Ποσό επιταγής],Άλλο[Κωδικός λογιστικής],ΣύνοψηΜηνιαίωνΕξόδων[[#This Row],[Κωδικός λογιστικής]],Άλλο[Ημερομηνία έναρξης αιτήματος επιταγής],\">=\"&DATEVALUE(\" 1 \"&ΣύνοψηΜηνιαίωνΕξόδων[[#Headers],[Νοε]]&_ΕΤΟΣ),Άλλο[Ημερομηνία έναρξης αιτήματος επιταγής],\"<=\"&N$4)","v":{"v":0,"d":"0.00 €"}},{"$f":"SUMIFS(ΑναλυτικάΈσοδα[Ποσό επιταγής],ΑναλυτικάΈσοδα[Κωδικός λογιστικής],ΣύνοψηΜηνιαίωνΕξόδων[[#This Row],[Κωδικός λογιστικής]],ΑναλυτικάΈσοδα[Ημερομηνία τιμολογίου],\">=\"&O$3,ΑναλυτικάΈσοδα[Ημερομηνία τιμολογίου],\"<=\"&O$4)+SUMIFS(Άλλο[Ποσό επιταγής],Άλλο[Κωδικός λογιστικής],ΣύνοψηΜηνιαίωνΕξόδων[[#This Row],[Κωδικός λογιστικής]],Άλλο[Ημερομηνία έναρξης αιτήματος επιταγής],\">=\"&DATEVALUE(\" 1 \"&ΣύνοψηΜηνιαίωνΕξόδων[[#Headers],[Δεκ]]&_ΕΤΟΣ),Άλλο[Ημερομηνία έναρξης αιτήματος επιταγής],\"<=\"&O$4)","v":{"v":0,"d":"0.00 €"}},{"$f":"SUM(ΣύνοψηΜηνιαίωνΕξόδων[[#This Row],[Ιαν]:[Δεκ]])","v":{"v":0,"d":"0.00 €"}}]
[null,7000,"Υπολογιστές",{"$f":"SUMIFS(ΑναλυτικάΈσοδα[Ποσό επιταγής],ΑναλυτικάΈσοδα[Κωδικός λογιστικής],ΣύνοψηΜηνιαίωνΕξόδων[[#This Row],[Κωδικός λογιστικής]],ΑναλυτικάΈσοδα[Ημερομηνία τιμολογίου],\">=\"&D$3,ΑναλυτικάΈσοδα[Ημερομηνία τιμολογίου],\"<=\"&D$4)+SUMIFS(Άλλο[Ποσό επιταγής],Άλλο[Κωδικός λογιστικής],ΣύνοψηΜηνιαίωνΕξόδων[[#This Row],[Κωδικός λογιστικής]],Άλλο[Ημερομηνία έναρξης αιτήματος επιταγής],\">=\"&DATEVALUE(\" 1 \"&ΣύνοψηΜηνιαίωνΕξόδων[[#Headers],[Ιαν]]&_ΕΤΟΣ),Άλλο[Ημερομηνία έναρξης αιτήματος επιταγής],\"<=\"&D$4)","v":{"v":0,"d":"0.00 €"}},{"$f":"SUMIFS(ΑναλυτικάΈσοδα[Ποσό επιταγής],ΑναλυτικάΈσοδα[Κωδικός λογιστικής],ΣύνοψηΜηνιαίωνΕξόδων[[#This Row],[Κωδικός λογιστικής]],ΑναλυτικάΈσοδα[Ημερομηνία τιμολογίου],\">=\"&E$3,ΑναλυτικάΈσοδα[Ημερομηνία τιμολογίου],\"<=\"&E$4)+SUMIFS(Άλλο[Ποσό επιταγής],Άλλο[Κωδικός λογιστικής],ΣύνοψηΜηνιαίωνΕξόδων[[#This Row],[Κωδικός λογιστικής]],Άλλο[Ημερομηνία έναρξης αιτήματος επιταγής],\">=\"&DATEVALUE(\" 1 \"&ΣύνοψηΜηνιαίωνΕξόδων[[#Headers],[Φεβ]]&_ΕΤΟΣ),Άλλο[Ημερομηνία έναρξης αιτήματος επιταγής],\"<=\"&E$4)","v":{"v":0,"d":"0.00 €"}},{"$f":"SUMIFS(ΑναλυτικάΈσοδα[Ποσό επιταγής],ΑναλυτικάΈσοδα[Κωδικός λογιστικής],ΣύνοψηΜηνιαίωνΕξόδων[[#This Row],[Κωδικός λογιστικής]],ΑναλυτικάΈσοδα[Ημερομηνία τιμολογίου],\">=\"&F$3,ΑναλυτικάΈσοδα[Ημερομηνία τιμολογίου],\"<=\"&F$4)+SUMIFS(Άλλο[Ποσό επιταγής],Άλλο[Κωδικός λογιστικής],ΣύνοψηΜηνιαίωνΕξόδων[[#This Row],[Κωδικός λογιστικής]],Άλλο[Ημερομηνία έναρξης αιτήματος επιταγής],\">=\"&DATEVALUE(\" 1 \"&ΣύνοψηΜηνιαίωνΕξόδων[[#Headers],[Μαρ]]&_ΕΤΟΣ),Άλλο[Ημερομηνία έναρξης αιτήματος επιταγής],\"<=\"&F$4)","v":{"v":0,"d":"0.00 €"}},{"$f":"SUMIFS(ΑναλυτικάΈσοδα[Ποσό επιταγής],ΑναλυτικάΈσοδα[Κωδικός λογιστικής],ΣύνοψηΜηνιαίωνΕξόδων[[#This Row],[Κωδικός λογιστικής]],ΑναλυτικάΈσοδα[Ημερομηνία τιμολογίου],\">=\"&G$3,ΑναλυτικάΈσοδα[Ημερομηνία τιμολογίου],\"<=\"&G$4)+SUMIFS(Άλλο[Ποσό επιταγής],Άλλο[Κωδικός λογιστικής],ΣύνοψηΜηνιαίωνΕξόδων[[#This Row],[Κωδικός λογιστικής]],Άλλο[Ημερομηνία έναρξης αιτήματος επιταγής],\">=\"&DATEVALUE(\" 1 \"&ΣύνοψηΜηνιαίωνΕξόδων[[#Headers],[Απρ]]&_ΕΤΟΣ),Άλλο[Ημερομηνία έναρξης αιτήματος επιταγής],\"<=\"&G$4)","v":{"v":0,"d":"0.00 €"}},{"$f":"SUMIFS(ΑναλυτικάΈσοδα[Ποσό επιταγής],ΑναλυτικάΈσοδα[Κωδικός λογιστικής],ΣύνοψηΜηνιαίωνΕξόδων[[#This Row],[Κωδικός λογιστικής]],ΑναλυτικάΈσοδα[Ημερομηνία τιμολογίου],\">=\"&H$3,ΑναλυτικάΈσοδα[Ημερομηνία τιμολογίου],\"<=\"&H$4)+SUMIFS(Άλλο[Ποσό επιταγής],Άλλο[Κωδικός λογιστικής],ΣύνοψηΜηνιαίωνΕξόδων[[#This Row],[Κωδικός λογιστικής]],Άλλο[Ημερομηνία έναρξης αιτήματος επιταγής],\">=\"&DATEVALUE(\" 1 \"&ΣύνοψηΜηνιαίωνΕξόδων[[#Headers],[Μαΐ]]&_ΕΤΟΣ),Άλλο[Ημερομηνία έναρξης αιτήματος επιταγής],\"<=\"&H$4)","v":{"v":0,"d":"0.00 €"}},{"$f":"SUMIFS(ΑναλυτικάΈσοδα[Ποσό επιταγής],ΑναλυτικάΈσοδα[Κωδικός λογιστικής],ΣύνοψηΜηνιαίωνΕξόδων[[#This Row],[Κωδικός λογιστικής]],ΑναλυτικάΈσοδα[Ημερομηνία τιμολογίου],\">=\"&I$3,ΑναλυτικάΈσοδα[Ημερομηνία τιμολογίου],\"<=\"&I$4)+SUMIFS(Άλλο[Ποσό επιταγής],Άλλο[Κωδικός λογιστικής],ΣύνοψηΜηνιαίωνΕξόδων[[#This Row],[Κωδικός λογιστικής]],Άλλο[Ημερομηνία έναρξης αιτήματος επιταγής],\">=\"&DATEVALUE(\" 1 \"&ΣύνοψηΜηνιαίωνΕξόδων[[#Headers],[Ιουν]]&_ΕΤΟΣ),Άλλο[Ημερομηνία έναρξης αιτήματος επιταγής],\"<=\"&I$4)","v":{"v":0,"d":"0.00 €"}},{"$f":"SUMIFS(ΑναλυτικάΈσοδα[Ποσό επιταγής],ΑναλυτικάΈσοδα[Κωδικός λογιστικής],ΣύνοψηΜηνιαίωνΕξόδων[[#This Row],[Κωδικός λογιστικής]],ΑναλυτικάΈσοδα[Ημερομηνία τιμολογίου],\">=\"&J$3,ΑναλυτικάΈσοδα[Ημερομηνία τιμολογίου],\"<=\"&J$4)+SUMIFS(Άλλο[Ποσό επιταγής],Άλλο[Κωδικός λογιστικής],ΣύνοψηΜηνιαίωνΕξόδων[[#This Row],[Κωδικός λογιστικής]],Άλλο[Ημερομηνία έναρξης αιτήματος επιταγής],\">=\"&DATEVALUE(\" 1 \"&ΣύνοψηΜηνιαίωνΕξόδων[[#Headers],[Ιουλ]]&_ΕΤΟΣ),Άλλο[Ημερομηνία έναρξης αιτήματος επιταγής],\"<=\"&J$4)","v":{"v":0,"d":"0.00 €"}},{"$f":"SUMIFS(ΑναλυτικάΈσοδα[Ποσό επιταγής],ΑναλυτικάΈσοδα[Κωδικός λογιστικής],ΣύνοψηΜηνιαίωνΕξόδων[[#This Row],[Κωδικός λογιστικής]],ΑναλυτικάΈσοδα[Ημερομηνία τιμολογίου],\">=\"&K$3,ΑναλυτικάΈσοδα[Ημερομηνία τιμολογίου],\"<=\"&K$4)+SUMIFS(Άλλο[Ποσό επιταγής],Άλλο[Κωδικός λογιστικής],ΣύνοψηΜηνιαίωνΕξόδων[[#This Row],[Κωδικός λογιστικής]],Άλλο[Ημερομηνία έναρξης αιτήματος επιταγής],\">=\"&DATEVALUE(\" 1 \"&ΣύνοψηΜηνιαίωνΕξόδων[[#Headers],[Αυγ]]&_ΕΤΟΣ),Άλλο[Ημερομηνία έναρξης αιτήματος επιταγής],\"<=\"&K$4)","v":{"v":0,"d":"0.00 €"}},{"$f":"SUMIFS(ΑναλυτικάΈσοδα[Ποσό επιταγής],ΑναλυτικάΈσοδα[Κωδικός λογιστικής],ΣύνοψηΜηνιαίωνΕξόδων[[#This Row],[Κωδικός λογιστικής]],ΑναλυτικάΈσοδα[Ημερομηνία τιμολογίου],\">=\"&L$3,ΑναλυτικάΈσοδα[Ημερομηνία τιμολογίου],\"<=\"&L$4)+SUMIFS(Άλλο[Ποσό επιταγής],Άλλο[Κωδικός λογιστικής],ΣύνοψηΜηνιαίωνΕξόδων[[#This Row],[Κωδικός λογιστικής]],Άλλο[Ημερομηνία έναρξης αιτήματος επιταγής],\">=\"&DATEVALUE(\" 1 \"&ΣύνοψηΜηνιαίωνΕξόδων[[#Headers],[Σεπ]]&_ΕΤΟΣ),Άλλο[Ημερομηνία έναρξης αιτήματος επιταγής],\"<=\"&L$4)","v":{"v":0,"d":"0.00 €"}},{"$f":"SUMIFS(ΑναλυτικάΈσοδα[Ποσό επιταγής],ΑναλυτικάΈσοδα[Κωδικός λογιστικής],ΣύνοψηΜηνιαίωνΕξόδων[[#This Row],[Κωδικός λογιστικής]],ΑναλυτικάΈσοδα[Ημερομηνία τιμολογίου],\">=\"&M$3,ΑναλυτικάΈσοδα[Ημερομηνία τιμολογίου],\"<=\"&M$4)+SUMIFS(Άλλο[Ποσό επιταγής],Άλλο[Κωδικός λογιστικής],ΣύνοψηΜηνιαίωνΕξόδων[[#This Row],[Κωδικός λογιστικής]],Άλλο[Ημερομηνία έναρξης αιτήματος επιταγής],\">=\"&DATEVALUE(\" 1 \"&ΣύνοψηΜηνιαίωνΕξόδων[[#Headers],[Οκτ]]&_ΕΤΟΣ),Άλλο[Ημερομηνία έναρξης αιτήματος επιταγής],\"<=\"&M$4)","v":{"v":0,"d":"0.00 €"}},{"$f":"SUMIFS(ΑναλυτικάΈσοδα[Ποσό επιταγής],ΑναλυτικάΈσοδα[Κωδικός λογιστικής],ΣύνοψηΜηνιαίωνΕξόδων[[#This Row],[Κωδικός λογιστικής]],ΑναλυτικάΈσοδα[Ημερομηνία τιμολογίου],\">=\"&N$3,ΑναλυτικάΈσοδα[Ημερομηνία τιμολογίου],\"<=\"&N$4)+SUMIFS(Άλλο[Ποσό επιταγής],Άλλο[Κωδικός λογιστικής],ΣύνοψηΜηνιαίωνΕξόδων[[#This Row],[Κωδικός λογιστικής]],Άλλο[Ημερομηνία έναρξης αιτήματος επιταγής],\">=\"&DATEVALUE(\" 1 \"&ΣύνοψηΜηνιαίωνΕξόδων[[#Headers],[Νοε]]&_ΕΤΟΣ),Άλλο[Ημερομηνία έναρξης αιτήματος επιταγής],\"<=\"&N$4)","v":{"v":0,"d":"0.00 €"}},{"$f":"SUMIFS(ΑναλυτικάΈσοδα[Ποσό επιταγής],ΑναλυτικάΈσοδα[Κωδικός λογιστικής],ΣύνοψηΜηνιαίωνΕξόδων[[#This Row],[Κωδικός λογιστικής]],ΑναλυτικάΈσοδα[Ημερομηνία τιμολογίου],\">=\"&O$3,ΑναλυτικάΈσοδα[Ημερομηνία τιμολογίου],\"<=\"&O$4)+SUMIFS(Άλλο[Ποσό επιταγής],Άλλο[Κωδικός λογιστικής],ΣύνοψηΜηνιαίωνΕξόδων[[#This Row],[Κωδικός λογιστικής]],Άλλο[Ημερομηνία έναρξης αιτήματος επιταγής],\">=\"&DATEVALUE(\" 1 \"&ΣύνοψηΜηνιαίωνΕξόδων[[#Headers],[Δεκ]]&_ΕΤΟΣ),Άλλο[Ημερομηνία έναρξης αιτήματος επιταγής],\"<=\"&O$4)","v":{"v":0,"d":"0.00 €"}},{"$f":"SUM(ΣύνοψηΜηνιαίωνΕξόδων[[#This Row],[Ιαν]:[Δεκ]])","v":{"v":0,"d":"0.00 €"}}]
[null,8000,"Ιατρικό πρόγραμμα",{"$f":"SUMIFS(ΑναλυτικάΈσοδα[Ποσό επιταγής],ΑναλυτικάΈσοδα[Κωδικός λογιστικής],ΣύνοψηΜηνιαίωνΕξόδων[[#This Row],[Κωδικός λογιστικής]],ΑναλυτικάΈσοδα[Ημερομηνία τιμολογίου],\">=\"&D$3,ΑναλυτικάΈσοδα[Ημερομηνία τιμολογίου],\"<=\"&D$4)+SUMIFS(Άλλο[Ποσό επιταγής],Άλλο[Κωδικός λογιστικής],ΣύνοψηΜηνιαίωνΕξόδων[[#This Row],[Κωδικός λογιστικής]],Άλλο[Ημερομηνία έναρξης αιτήματος επιταγής],\">=\"&DATEVALUE(\" 1 \"&ΣύνοψηΜηνιαίωνΕξόδων[[#Headers],[Ιαν]]&_ΕΤΟΣ),Άλλο[Ημερομηνία έναρξης αιτήματος επιταγής],\"<=\"&D$4)","v":{"v":0,"d":"0.00 €"}},{"$f":"SUMIFS(ΑναλυτικάΈσοδα[Ποσό επιταγής],ΑναλυτικάΈσοδα[Κωδικός λογιστικής],ΣύνοψηΜηνιαίωνΕξόδων[[#This Row],[Κωδικός λογιστικής]],ΑναλυτικάΈσοδα[Ημερομηνία τιμολογίου],\">=\"&E$3,ΑναλυτικάΈσοδα[Ημερομηνία τιμολογίου],\"<=\"&E$4)+SUMIFS(Άλλο[Ποσό επιταγής],Άλλο[Κωδικός λογιστικής],ΣύνοψηΜηνιαίωνΕξόδων[[#This Row],[Κωδικός λογιστικής]],Άλλο[Ημερομηνία έναρξης αιτήματος επιταγής],\">=\"&DATEVALUE(\" 1 \"&ΣύνοψηΜηνιαίωνΕξόδων[[#Headers],[Φεβ]]&_ΕΤΟΣ),Άλλο[Ημερομηνία έναρξης αιτήματος επιταγής],\"<=\"&E$4)","v":{"v":0,"d":"0.00 €"}},{"$f":"SUMIFS(ΑναλυτικάΈσοδα[Ποσό επιταγής],ΑναλυτικάΈσοδα[Κωδικός λογιστικής],ΣύνοψηΜηνιαίωνΕξόδων[[#This Row],[Κωδικός λογιστικής]],ΑναλυτικάΈσοδα[Ημερομηνία τιμολογίου],\">=\"&F$3,ΑναλυτικάΈσοδα[Ημερομηνία τιμολογίου],\"<=\"&F$4)+SUMIFS(Άλλο[Ποσό επιταγής],Άλλο[Κωδικός λογιστικής],ΣύνοψηΜηνιαίωνΕξόδων[[#This Row],[Κωδικός λογιστικής]],Άλλο[Ημερομηνία έναρξης αιτήματος επιταγής],\">=\"&DATEVALUE(\" 1 \"&ΣύνοψηΜηνιαίωνΕξόδων[[#Headers],[Μαρ]]&_ΕΤΟΣ),Άλλο[Ημερομηνία έναρξης αιτήματος επιταγής],\"<=\"&F$4)","v":{"v":0,"d":"0.00 €"}},{"$f":"SUMIFS(ΑναλυτικάΈσοδα[Ποσό επιταγής],ΑναλυτικάΈσοδα[Κωδικός λογιστικής],ΣύνοψηΜηνιαίωνΕξόδων[[#This Row],[Κωδικός λογιστικής]],ΑναλυτικάΈσοδα[Ημερομηνία τιμολογίου],\">=\"&G$3,ΑναλυτικάΈσοδα[Ημερομηνία τιμολογίου],\"<=\"&G$4)+SUMIFS(Άλλο[Ποσό επιταγής],Άλλο[Κωδικός λογιστικής],ΣύνοψηΜηνιαίωνΕξόδων[[#This Row],[Κωδικός λογιστικής]],Άλλο[Ημερομηνία έναρξης αιτήματος επιταγής],\">=\"&DATEVALUE(\" 1 \"&ΣύνοψηΜηνιαίωνΕξόδων[[#Headers],[Απρ]]&_ΕΤΟΣ),Άλλο[Ημερομηνία έναρξης αιτήματος επιταγής],\"<=\"&G$4)","v":{"v":0,"d":"0.00 €"}},{"$f":"SUMIFS(ΑναλυτικάΈσοδα[Ποσό επιταγής],ΑναλυτικάΈσοδα[Κωδικός λογιστικής],ΣύνοψηΜηνιαίωνΕξόδων[[#This Row],[Κωδικός λογιστικής]],ΑναλυτικάΈσοδα[Ημερομηνία τιμολογίου],\">=\"&H$3,ΑναλυτικάΈσοδα[Ημερομηνία τιμολογίου],\"<=\"&H$4)+SUMIFS(Άλλο[Ποσό επιταγής],Άλλο[Κωδικός λογιστικής],ΣύνοψηΜηνιαίωνΕξόδων[[#This Row],[Κωδικός λογιστικής]],Άλλο[Ημερομηνία έναρξης αιτήματος επιταγής],\">=\"&DATEVALUE(\" 1 \"&ΣύνοψηΜηνιαίωνΕξόδων[[#Headers],[Μαΐ]]&_ΕΤΟΣ),Άλλο[Ημερομηνία έναρξης αιτήματος επιταγής],\"<=\"&H$4)","v":{"v":0,"d":"0.00 €"}},{"$f":"SUMIFS(ΑναλυτικάΈσοδα[Ποσό επιταγής],ΑναλυτικάΈσοδα[Κωδικός λογιστικής],ΣύνοψηΜηνιαίωνΕξόδων[[#This Row],[Κωδικός λογιστικής]],ΑναλυτικάΈσοδα[Ημερομηνία τιμολογίου],\">=\"&I$3,ΑναλυτικάΈσοδα[Ημερομηνία τιμολογίου],\"<=\"&I$4)+SUMIFS(Άλλο[Ποσό επιταγής],Άλλο[Κωδικός λογιστικής],ΣύνοψηΜηνιαίωνΕξόδων[[#This Row],[Κωδικός λογιστικής]],Άλλο[Ημερομηνία έναρξης αιτήματος επιταγής],\">=\"&DATEVALUE(\" 1 \"&ΣύνοψηΜηνιαίωνΕξόδων[[#Headers],[Ιουν]]&_ΕΤΟΣ),Άλλο[Ημερομηνία έναρξης αιτήματος επιταγής],\"<=\"&I$4)","v":{"v":0,"d":"0.00 €"}},{"$f":"SUMIFS(ΑναλυτικάΈσοδα[Ποσό επιταγής],ΑναλυτικάΈσοδα[Κωδικός λογιστικής],ΣύνοψηΜηνιαίωνΕξόδων[[#This Row],[Κωδικός λογιστικής]],ΑναλυτικάΈσοδα[Ημερομηνία τιμολογίου],\">=\"&J$3,ΑναλυτικάΈσοδα[Ημερομηνία τιμολογίου],\"<=\"&J$4)+SUMIFS(Άλλο[Ποσό επιταγής],Άλλο[Κωδικός λογιστικής],ΣύνοψηΜηνιαίωνΕξόδων[[#This Row],[Κωδικός λογιστικής]],Άλλο[Ημερομηνία έναρξης αιτήματος επιταγής],\">=\"&DATEVALUE(\" 1 \"&ΣύνοψηΜηνιαίωνΕξόδων[[#Headers],[Ιουλ]]&_ΕΤΟΣ),Άλλο[Ημερομηνία έναρξης αιτήματος επιταγής],\"<=\"&J$4)","v":{"v":0,"d":"0.00 €"}},{"$f":"SUMIFS(ΑναλυτικάΈσοδα[Ποσό επιταγής],ΑναλυτικάΈσοδα[Κωδικός λογιστικής],ΣύνοψηΜηνιαίωνΕξόδων[[#This Row],[Κωδικός λογιστικής]],ΑναλυτικάΈσοδα[Ημερομηνία τιμολογίου],\">=\"&K$3,ΑναλυτικάΈσοδα[Ημερομηνία τιμολογίου],\"<=\"&K$4)+SUMIFS(Άλλο[Ποσό επιταγής],Άλλο[Κωδικός λογιστικής],ΣύνοψηΜηνιαίωνΕξόδων[[#This Row],[Κωδικός λογιστικής]],Άλλο[Ημερομηνία έναρξης αιτήματος επιταγής],\">=\"&DATEVALUE(\" 1 \"&ΣύνοψηΜηνιαίωνΕξόδων[[#Headers],[Αυγ]]&_ΕΤΟΣ),Άλλο[Ημερομηνία έναρξης αιτήματος επιταγής],\"<=\"&K$4)","v":{"v":0,"d":"0.00 €"}},{"$f":"SUMIFS(ΑναλυτικάΈσοδα[Ποσό επιταγής],ΑναλυτικάΈσοδα[Κωδικός λογιστικής],ΣύνοψηΜηνιαίωνΕξόδων[[#This Row],[Κωδικός λογιστικής]],ΑναλυτικάΈσοδα[Ημερομηνία τιμολογίου],\">=\"&L$3,ΑναλυτικάΈσοδα[Ημερομηνία τιμολογίου],\"<=\"&L$4)+SUMIFS(Άλλο[Ποσό επιταγής],Άλλο[Κωδικός λογιστικής],ΣύνοψηΜηνιαίωνΕξόδων[[#This Row],[Κωδικός λογιστικής]],Άλλο[Ημερομηνία έναρξης αιτήματος επιταγής],\">=\"&DATEVALUE(\" 1 \"&ΣύνοψηΜηνιαίωνΕξόδων[[#Headers],[Σεπ]]&_ΕΤΟΣ),Άλλο[Ημερομηνία έναρξης αιτήματος επιταγής],\"<=\"&L$4)","v":{"v":0,"d":"0.00 €"}},{"$f":"SUMIFS(ΑναλυτικάΈσοδα[Ποσό επιταγής],ΑναλυτικάΈσοδα[Κωδικός λογιστικής],ΣύνοψηΜηνιαίωνΕξόδων[[#This Row],[Κωδικός λογιστικής]],ΑναλυτικάΈσοδα[Ημερομηνία τιμολογίου],\">=\"&M$3,ΑναλυτικάΈσοδα[Ημερομηνία τιμολογίου],\"<=\"&M$4)+SUMIFS(Άλλο[Ποσό επιταγής],Άλλο[Κωδικός λογιστικής],ΣύνοψηΜηνιαίωνΕξόδων[[#This Row],[Κωδικός λογιστικής]],Άλλο[Ημερομηνία έναρξης αιτήματος επιταγής],\">=\"&DATEVALUE(\" 1 \"&ΣύνοψηΜηνιαίωνΕξόδων[[#Headers],[Οκτ]]&_ΕΤΟΣ),Άλλο[Ημερομηνία έναρξης αιτήματος επιταγής],\"<=\"&M$4)","v":{"v":0,"d":"0.00 €"}},{"$f":"SUMIFS(ΑναλυτικάΈσοδα[Ποσό επιταγής],ΑναλυτικάΈσοδα[Κωδικός λογιστικής],ΣύνοψηΜηνιαίωνΕξόδων[[#This Row],[Κωδικός λογιστικής]],ΑναλυτικάΈσοδα[Ημερομηνία τιμολογίου],\">=\"&N$3,ΑναλυτικάΈσοδα[Ημερομηνία τιμολογίου],\"<=\"&N$4)+SUMIFS(Άλλο[Ποσό επιταγής],Άλλο[Κωδικός λογιστικής],ΣύνοψηΜηνιαίωνΕξόδων[[#This Row],[Κωδικός λογιστικής]],Άλλο[Ημερομηνία έναρξης αιτήματος επιταγής],\">=\"&DATEVALUE(\" 1 \"&ΣύνοψηΜηνιαίωνΕξόδων[[#Headers],[Νοε]]&_ΕΤΟΣ),Άλλο[Ημερομηνία έναρξης αιτήματος επιταγής],\"<=\"&N$4)","v":{"v":0,"d":"0.00 €"}},{"$f":"SUMIFS(ΑναλυτικάΈσοδα[Ποσό επιταγής],ΑναλυτικάΈσοδα[Κωδικός λογιστικής],ΣύνοψηΜηνιαίωνΕξόδων[[#This Row],[Κωδικός λογιστικής]],ΑναλυτικάΈσοδα[Ημερομηνία τιμολογίου],\">=\"&O$3,ΑναλυτικάΈσοδα[Ημερομηνία τιμολογίου],\"<=\"&O$4)+SUMIFS(Άλλο[Ποσό επιταγής],Άλλο[Κωδικός λογιστικής],ΣύνοψηΜηνιαίωνΕξόδων[[#This Row],[Κωδικός λογιστικής]],Άλλο[Ημερομηνία έναρξης αιτήματος επιταγής],\">=\"&DATEVALUE(\" 1 \"&ΣύνοψηΜηνιαίωνΕξόδων[[#Headers],[Δεκ]]&_ΕΤΟΣ),Άλλο[Ημερομηνία έναρξης αιτήματος επιταγής],\"<=\"&O$4)","v":{"v":0,"d":"0.00 €"}},{"$f":"SUM(ΣύνοψηΜηνιαίωνΕξόδων[[#This Row],[Ιαν]:[Δεκ]])","v":{"v":0,"d":"0.00 €"}}]
[null,9000,"Έξοδα κτιρίου",{"$f":"SUMIFS(ΑναλυτικάΈσοδα[Ποσό επιταγής],ΑναλυτικάΈσοδα[Κωδικός λογιστικής],ΣύνοψηΜηνιαίωνΕξόδων[[#This Row],[Κωδικός λογιστικής]],ΑναλυτικάΈσοδα[Ημερομηνία τιμολογίου],\">=\"&D$3,ΑναλυτικάΈσοδα[Ημερομηνία τιμολογίου],\"<=\"&D$4)+SUMIFS(Άλλο[Ποσό επιταγής],Άλλο[Κωδικός λογιστικής],ΣύνοψηΜηνιαίωνΕξόδων[[#This Row],[Κωδικός λογιστικής]],Άλλο[Ημερομηνία έναρξης αιτήματος επιταγής],\">=\"&DATEVALUE(\" 1 \"&ΣύνοψηΜηνιαίωνΕξόδων[[#Headers],[Ιαν]]&_ΕΤΟΣ),Άλλο[Ημερομηνία έναρξης αιτήματος επιταγής],\"<=\"&D$4)","v":{"v":0,"d":"0.00 €"}},{"$f":"SUMIFS(ΑναλυτικάΈσοδα[Ποσό επιταγής],ΑναλυτικάΈσοδα[Κωδικός λογιστικής],ΣύνοψηΜηνιαίωνΕξόδων[[#This Row],[Κωδικός λογιστικής]],ΑναλυτικάΈσοδα[Ημερομηνία τιμολογίου],\">=\"&E$3,ΑναλυτικάΈσοδα[Ημερομηνία τιμολογίου],\"<=\"&E$4)+SUMIFS(Άλλο[Ποσό επιταγής],Άλλο[Κωδικός λογιστικής],ΣύνοψηΜηνιαίωνΕξόδων[[#This Row],[Κωδικός λογιστικής]],Άλλο[Ημερομηνία έναρξης αιτήματος επιταγής],\">=\"&DATEVALUE(\" 1 \"&ΣύνοψηΜηνιαίωνΕξόδων[[#Headers],[Φεβ]]&_ΕΤΟΣ),Άλλο[Ημερομηνία έναρξης αιτήματος επιταγής],\"<=\"&E$4)","v":{"v":0,"d":"0.00 €"}},{"$f":"SUMIFS(ΑναλυτικάΈσοδα[Ποσό επιταγής],ΑναλυτικάΈσοδα[Κωδικός λογιστικής],ΣύνοψηΜηνιαίωνΕξόδων[[#This Row],[Κωδικός λογιστικής]],ΑναλυτικάΈσοδα[Ημερομηνία τιμολογίου],\">=\"&F$3,ΑναλυτικάΈσοδα[Ημερομηνία τιμολογίου],\"<=\"&F$4)+SUMIFS(Άλλο[Ποσό επιταγής],Άλλο[Κωδικός λογιστικής],ΣύνοψηΜηνιαίωνΕξόδων[[#This Row],[Κωδικός λογιστικής]],Άλλο[Ημερομηνία έναρξης αιτήματος επιταγής],\">=\"&DATEVALUE(\" 1 \"&ΣύνοψηΜηνιαίωνΕξόδων[[#Headers],[Μαρ]]&_ΕΤΟΣ),Άλλο[Ημερομηνία έναρξης αιτήματος επιταγής],\"<=\"&F$4)","v":{"v":0,"d":"0.00 €"}},{"$f":"SUMIFS(ΑναλυτικάΈσοδα[Ποσό επιταγής],ΑναλυτικάΈσοδα[Κωδικός λογιστικής],ΣύνοψηΜηνιαίωνΕξόδων[[#This Row],[Κωδικός λογιστικής]],ΑναλυτικάΈσοδα[Ημερομηνία τιμολογίου],\">=\"&G$3,ΑναλυτικάΈσοδα[Ημερομηνία τιμολογίου],\"<=\"&G$4)+SUMIFS(Άλλο[Ποσό επιταγής],Άλλο[Κωδικός λογιστικής],ΣύνοψηΜηνιαίωνΕξόδων[[#This Row],[Κωδικός λογιστικής]],Άλλο[Ημερομηνία έναρξης αιτήματος επιταγής],\">=\"&DATEVALUE(\" 1 \"&ΣύνοψηΜηνιαίωνΕξόδων[[#Headers],[Απρ]]&_ΕΤΟΣ),Άλλο[Ημερομηνία έναρξης αιτήματος επιταγής],\"<=\"&G$4)","v":{"v":0,"d":"0.00 €"}},{"$f":"SUMIFS(ΑναλυτικάΈσοδα[Ποσό επιταγής],ΑναλυτικάΈσοδα[Κωδικός λογιστικής],ΣύνοψηΜηνιαίωνΕξόδων[[#This Row],[Κωδικός λογιστικής]],ΑναλυτικάΈσοδα[Ημερομηνία τιμολογίου],\">=\"&H$3,ΑναλυτικάΈσοδα[Ημερομηνία τιμολογίου],\"<=\"&H$4)+SUMIFS(Άλλο[Ποσό επιταγής],Άλλο[Κωδικός λογιστικής],ΣύνοψηΜηνιαίωνΕξόδων[[#This Row],[Κωδικός λογιστικής]],Άλλο[Ημερομηνία έναρξης αιτήματος επιταγής],\">=\"&DATEVALUE(\" 1 \"&ΣύνοψηΜηνιαίωνΕξόδων[[#Headers],[Μαΐ]]&_ΕΤΟΣ),Άλλο[Ημερομηνία έναρξης αιτήματος επιταγής],\"<=\"&H$4)","v":{"v":0,"d":"0.00 €"}},{"$f":"SUMIFS(ΑναλυτικάΈσοδα[Ποσό επιταγής],ΑναλυτικάΈσοδα[Κωδικός λογιστικής],ΣύνοψηΜηνιαίωνΕξόδων[[#This Row],[Κωδικός λογιστικής]],ΑναλυτικάΈσοδα[Ημερομηνία τιμολογίου],\">=\"&I$3,ΑναλυτικάΈσοδα[Ημερομηνία τιμολογίου],\"<=\"&I$4)+SUMIFS(Άλλο[Ποσό επιταγής],Άλλο[Κωδικός λογιστικής],ΣύνοψηΜηνιαίωνΕξόδων[[#This Row],[Κωδικός λογιστικής]],Άλλο[Ημερομηνία έναρξης αιτήματος επιταγής],\">=\"&DATEVALUE(\" 1 \"&ΣύνοψηΜηνιαίωνΕξόδων[[#Headers],[Ιουν]]&_ΕΤΟΣ),Άλλο[Ημερομηνία έναρξης αιτήματος επιταγής],\"<=\"&I$4)","v":{"v":0,"d":"0.00 €"}},{"$f":"SUMIFS(ΑναλυτικάΈσοδα[Ποσό επιταγής],ΑναλυτικάΈσοδα[Κωδικός λογιστικής],ΣύνοψηΜηνιαίωνΕξόδων[[#This Row],[Κωδικός λογιστικής]],ΑναλυτικάΈσοδα[Ημερομηνία τιμολογίου],\">=\"&J$3,ΑναλυτικάΈσοδα[Ημερομηνία τιμολογίου],\"<=\"&J$4)+SUMIFS(Άλλο[Ποσό επιταγής],Άλλο[Κωδικός λογιστικής],ΣύνοψηΜηνιαίωνΕξόδων[[#This Row],[Κωδικός λογιστικής]],Άλλο[Ημερομηνία έναρξης αιτήματος επιταγής],\">=\"&DATEVALUE(\" 1 \"&ΣύνοψηΜηνιαίωνΕξόδων[[#Headers],[Ιουλ]]&_ΕΤΟΣ),Άλλο[Ημερομηνία έναρξης αιτήματος επιταγής],\"<=\"&J$4)","v":{"v":0,"d":"0.00 €"}},{"$f":"SUMIFS(ΑναλυτικάΈσοδα[Ποσό επιταγής],ΑναλυτικάΈσοδα[Κωδικός λογιστικής],ΣύνοψηΜηνιαίωνΕξόδων[[#This Row],[Κωδικός λογιστικής]],ΑναλυτικάΈσοδα[Ημερομηνία τιμολογίου],\">=\"&K$3,ΑναλυτικάΈσοδα[Ημερομηνία τιμολογίου],\"<=\"&K$4)+SUMIFS(Άλλο[Ποσό επιταγής],Άλλο[Κωδικός λογιστικής],ΣύνοψηΜηνιαίωνΕξόδων[[#This Row],[Κωδικός λογιστικής]],Άλλο[Ημερομηνία έναρξης αιτήματος επιταγής],\">=\"&DATEVALUE(\" 1 \"&ΣύνοψηΜηνιαίωνΕξόδων[[#Headers],[Αυγ]]&_ΕΤΟΣ),Άλλο[Ημερομηνία έναρξης αιτήματος επιταγής],\"<=\"&K$4)","v":{"v":0,"d":"0.00 €"}},{"$f":"SUMIFS(ΑναλυτικάΈσοδα[Ποσό επιταγής],ΑναλυτικάΈσοδα[Κωδικός λογιστικής],ΣύνοψηΜηνιαίωνΕξόδων[[#This Row],[Κωδικός λογιστικής]],ΑναλυτικάΈσοδα[Ημερομηνία τιμολογίου],\">=\"&L$3,ΑναλυτικάΈσοδα[Ημερομηνία τιμολογίου],\"<=\"&L$4)+SUMIFS(Άλλο[Ποσό επιταγής],Άλλο[Κωδικός λογιστικής],ΣύνοψηΜηνιαίωνΕξόδων[[#This Row],[Κωδικός λογιστικής]],Άλλο[Ημερομηνία έναρξης αιτήματος επιταγής],\">=\"&DATEVALUE(\" 1 \"&ΣύνοψηΜηνιαίωνΕξόδων[[#Headers],[Σεπ]]&_ΕΤΟΣ),Άλλο[Ημερομηνία έναρξης αιτήματος επιταγής],\"<=\"&L$4)","v":{"v":0,"d":"0.00 €"}},{"$f":"SUMIFS(ΑναλυτικάΈσοδα[Ποσό επιταγής],ΑναλυτικάΈσοδα[Κωδικός λογιστικής],ΣύνοψηΜηνιαίωνΕξόδων[[#This Row],[Κωδικός λογιστικής]],ΑναλυτικάΈσοδα[Ημερομηνία τιμολογίου],\">=\"&M$3,ΑναλυτικάΈσοδα[Ημερομηνία τιμολογίου],\"<=\"&M$4)+SUMIFS(Άλλο[Ποσό επιταγής],Άλλο[Κωδικός λογιστικής],ΣύνοψηΜηνιαίωνΕξόδων[[#This Row],[Κωδικός λογιστικής]],Άλλο[Ημερομηνία έναρξης αιτήματος επιταγής],\">=\"&DATEVALUE(\" 1 \"&ΣύνοψηΜηνιαίωνΕξόδων[[#Headers],[Οκτ]]&_ΕΤΟΣ),Άλλο[Ημερομηνία έναρξης αιτήματος επιταγής],\"<=\"&M$4)","v":{"v":0,"d":"0.00 €"}},{"$f":"SUMIFS(ΑναλυτικάΈσοδα[Ποσό επιταγής],ΑναλυτικάΈσοδα[Κωδικός λογιστικής],ΣύνοψηΜηνιαίωνΕξόδων[[#This Row],[Κωδικός λογιστικής]],ΑναλυτικάΈσοδα[Ημερομηνία τιμολογίου],\">=\"&N$3,ΑναλυτικάΈσοδα[Ημερομηνία τιμολογίου],\"<=\"&N$4)+SUMIFS(Άλλο[Ποσό επιταγής],Άλλο[Κωδικός λογιστικής],ΣύνοψηΜηνιαίωνΕξόδων[[#This Row],[Κωδικός λογιστικής]],Άλλο[Ημερομηνία έναρξης αιτήματος επιταγής],\">=\"&DATEVALUE(\" 1 \"&ΣύνοψηΜηνιαίωνΕξόδων[[#Headers],[Νοε]]&_ΕΤΟΣ),Άλλο[Ημερομηνία έναρξης αιτήματος επιταγής],\"<=\"&N$4)","v":{"v":0,"d":"0.00 €"}},{"$f":"SUMIFS(ΑναλυτικάΈσοδα[Ποσό επιταγής],ΑναλυτικάΈσοδα[Κωδικός λογιστικής],ΣύνοψηΜηνιαίωνΕξόδων[[#This Row],[Κωδικός λογιστικής]],ΑναλυτικάΈσοδα[Ημερομηνία τιμολογίου],\">=\"&O$3,ΑναλυτικάΈσοδα[Ημερομηνία τιμολογίου],\"<=\"&O$4)+SUMIFS(Άλλο[Ποσό επιταγής],Άλλο[Κωδικός λογιστικής],ΣύνοψηΜηνιαίωνΕξόδων[[#This Row],[Κωδικός λογιστικής]],Άλλο[Ημερομηνία έναρξης αιτήματος επιταγής],\">=\"&DATEVALUE(\" 1 \"&ΣύνοψηΜηνιαίωνΕξόδων[[#Headers],[Δεκ]]&_ΕΤΟΣ),Άλλο[Ημερομηνία έναρξης αιτήματος επιταγής],\"<=\"&O$4)","v":{"v":0,"d":"0.00 €"}},{"$f":"SUM(ΣύνοψηΜηνιαίωνΕξόδων[[#This Row],[Ιαν]:[Δεκ]])","v":{"v":0,"d":"0.00 €"}}]
[null,10000,"Μάρκετινγκ",{"$f":"SUMIFS(ΑναλυτικάΈσοδα[Ποσό επιταγής],ΑναλυτικάΈσοδα[Κωδικός λογιστικής],ΣύνοψηΜηνιαίωνΕξόδων[[#This Row],[Κωδικός λογιστικής]],ΑναλυτικάΈσοδα[Ημερομηνία τιμολογίου],\">=\"&D$3,ΑναλυτικάΈσοδα[Ημερομηνία τιμολογίου],\"<=\"&D$4)+SUMIFS(Άλλο[Ποσό επιταγής],Άλλο[Κωδικός λογιστικής],ΣύνοψηΜηνιαίωνΕξόδων[[#This Row],[Κωδικός λογιστικής]],Άλλο[Ημερομηνία έναρξης αιτήματος επιταγής],\">=\"&DATEVALUE(\" 1 \"&ΣύνοψηΜηνιαίωνΕξόδων[[#Headers],[Ιαν]]&_ΕΤΟΣ),Άλλο[Ημερομηνία έναρξης αιτήματος επιταγής],\"<=\"&D$4)","v":{"v":0,"d":"0.00 €"}},{"$f":"SUMIFS(ΑναλυτικάΈσοδα[Ποσό επιταγής],ΑναλυτικάΈσοδα[Κωδικός λογιστικής],ΣύνοψηΜηνιαίωνΕξόδων[[#This Row],[Κωδικός λογιστικής]],ΑναλυτικάΈσοδα[Ημερομηνία τιμολογίου],\">=\"&E$3,ΑναλυτικάΈσοδα[Ημερομηνία τιμολογίου],\"<=\"&E$4)+SUMIFS(Άλλο[Ποσό επιταγής],Άλλο[Κωδικός λογιστικής],ΣύνοψηΜηνιαίωνΕξόδων[[#This Row],[Κωδικός λογιστικής]],Άλλο[Ημερομηνία έναρξης αιτήματος επιταγής],\">=\"&DATEVALUE(\" 1 \"&ΣύνοψηΜηνιαίωνΕξόδων[[#Headers],[Φεβ]]&_ΕΤΟΣ),Άλλο[Ημερομηνία έναρξης αιτήματος επιταγής],\"<=\"&E$4)","v":{"v":0,"d":"0.00 €"}},{"$f":"SUMIFS(ΑναλυτικάΈσοδα[Ποσό επιταγής],ΑναλυτικάΈσοδα[Κωδικός λογιστικής],ΣύνοψηΜηνιαίωνΕξόδων[[#This Row],[Κωδικός λογιστικής]],ΑναλυτικάΈσοδα[Ημερομηνία τιμολογίου],\">=\"&F$3,ΑναλυτικάΈσοδα[Ημερομηνία τιμολογίου],\"<=\"&F$4)+SUMIFS(Άλλο[Ποσό επιταγής],Άλλο[Κωδικός λογιστικής],ΣύνοψηΜηνιαίωνΕξόδων[[#This Row],[Κωδικός λογιστικής]],Άλλο[Ημερομηνία έναρξης αιτήματος επιταγής],\">=\"&DATEVALUE(\" 1 \"&ΣύνοψηΜηνιαίωνΕξόδων[[#Headers],[Μαρ]]&_ΕΤΟΣ),Άλλο[Ημερομηνία έναρξης αιτήματος επιταγής],\"<=\"&F$4)","v":{"v":0,"d":"0.00 €"}},{"$f":"SUMIFS(ΑναλυτικάΈσοδα[Ποσό επιταγής],ΑναλυτικάΈσοδα[Κωδικός λογιστικής],ΣύνοψηΜηνιαίωνΕξόδων[[#This Row],[Κωδικός λογιστικής]],ΑναλυτικάΈσοδα[Ημερομηνία τιμολογίου],\">=\"&G$3,ΑναλυτικάΈσοδα[Ημερομηνία τιμολογίου],\"<=\"&G$4)+SUMIFS(Άλλο[Ποσό επιταγής],Άλλο[Κωδικός λογιστικής],ΣύνοψηΜηνιαίωνΕξόδων[[#This Row],[Κωδικός λογιστικής]],Άλλο[Ημερομηνία έναρξης αιτήματος επιταγής],\">=\"&DATEVALUE(\" 1 \"&ΣύνοψηΜηνιαίωνΕξόδων[[#Headers],[Απρ]]&_ΕΤΟΣ),Άλλο[Ημερομηνία έναρξης αιτήματος επιταγής],\"<=\"&G$4)","v":{"v":0,"d":"0.00 €"}},{"$f":"SUMIFS(ΑναλυτικάΈσοδα[Ποσό επιταγής],ΑναλυτικάΈσοδα[Κωδικός λογιστικής],ΣύνοψηΜηνιαίωνΕξόδων[[#This Row],[Κωδικός λογιστικής]],ΑναλυτικάΈσοδα[Ημερομηνία τιμολογίου],\">=\"&H$3,ΑναλυτικάΈσοδα[Ημερομηνία τιμολογίου],\"<=\"&H$4)+SUMIFS(Άλλο[Ποσό επιταγής],Άλλο[Κωδικός λογιστικής],ΣύνοψηΜηνιαίωνΕξόδων[[#This Row],[Κωδικός λογιστικής]],Άλλο[Ημερομηνία έναρξης αιτήματος επιταγής],\">=\"&DATEVALUE(\" 1 \"&ΣύνοψηΜηνιαίωνΕξόδων[[#Headers],[Μαΐ]]&_ΕΤΟΣ),Άλλο[Ημερομηνία έναρξης αιτήματος επιταγής],\"<=\"&H$4)","v":{"v":0,"d":"0.00 €"}},{"$f":"SUMIFS(ΑναλυτικάΈσοδα[Ποσό επιταγής],ΑναλυτικάΈσοδα[Κωδικός λογιστικής],ΣύνοψηΜηνιαίωνΕξόδων[[#This Row],[Κωδικός λογιστικής]],ΑναλυτικάΈσοδα[Ημερομηνία τιμολογίου],\">=\"&I$3,ΑναλυτικάΈσοδα[Ημερομηνία τιμολογίου],\"<=\"&I$4)+SUMIFS(Άλλο[Ποσό επιταγής],Άλλο[Κωδικός λογιστικής],ΣύνοψηΜηνιαίωνΕξόδων[[#This Row],[Κωδικός λογιστικής]],Άλλο[Ημερομηνία έναρξης αιτήματος επιταγής],\">=\"&DATEVALUE(\" 1 \"&ΣύνοψηΜηνιαίωνΕξόδων[[#Headers],[Ιουν]]&_ΕΤΟΣ),Άλλο[Ημερομηνία έναρξης αιτήματος επιταγής],\"<=\"&I$4)","v":{"v":0,"d":"0.00 €"}},{"$f":"SUMIFS(ΑναλυτικάΈσοδα[Ποσό επιταγής],ΑναλυτικάΈσοδα[Κωδικός λογιστικής],ΣύνοψηΜηνιαίωνΕξόδων[[#This Row],[Κωδικός λογιστικής]],ΑναλυτικάΈσοδα[Ημερομηνία τιμολογίου],\">=\"&J$3,ΑναλυτικάΈσοδα[Ημερομηνία τιμολογίου],\"<=\"&J$4)+SUMIFS(Άλλο[Ποσό επιταγής],Άλλο[Κωδικός λογιστικής],ΣύνοψηΜηνιαίωνΕξόδων[[#This Row],[Κωδικός λογιστικής]],Άλλο[Ημερομηνία έναρξης αιτήματος επιταγής],\">=\"&DATEVALUE(\" 1 \"&ΣύνοψηΜηνιαίωνΕξόδων[[#Headers],[Ιουλ]]&_ΕΤΟΣ),Άλλο[Ημερομηνία έναρξης αιτήματος επιταγής],\"<=\"&J$4)","v":{"v":0,"d":"0.00 €"}},{"$f":"SUMIFS(ΑναλυτικάΈσοδα[Ποσό επιταγής],ΑναλυτικάΈσοδα[Κωδικός λογιστικής],ΣύνοψηΜηνιαίωνΕξόδων[[#This Row],[Κωδικός λογιστικής]],ΑναλυτικάΈσοδα[Ημερομηνία τιμολογίου],\">=\"&K$3,ΑναλυτικάΈσοδα[Ημερομηνία τιμολογίου],\"<=\"&K$4)+SUMIFS(Άλλο[Ποσό επιταγής],Άλλο[Κωδικός λογιστικής],ΣύνοψηΜηνιαίωνΕξόδων[[#This Row],[Κωδικός λογιστικής]],Άλλο[Ημερομηνία έναρξης αιτήματος επιταγής],\">=\"&DATEVALUE(\" 1 \"&ΣύνοψηΜηνιαίωνΕξόδων[[#Headers],[Αυγ]]&_ΕΤΟΣ),Άλλο[Ημερομηνία έναρξης αιτήματος επιταγής],\"<=\"&K$4)","v":{"v":0,"d":"0.00 €"}},{"$f":"SUMIFS(ΑναλυτικάΈσοδα[Ποσό επιταγής],ΑναλυτικάΈσοδα[Κωδικός λογιστικής],ΣύνοψηΜηνιαίωνΕξόδων[[#This Row],[Κωδικός λογιστικής]],ΑναλυτικάΈσοδα[Ημερομηνία τιμολογίου],\">=\"&L$3,ΑναλυτικάΈσοδα[Ημερομηνία τιμολογίου],\"<=\"&L$4)+SUMIFS(Άλλο[Ποσό επιταγής],Άλλο[Κωδικός λογιστικής],ΣύνοψηΜηνιαίωνΕξόδων[[#This Row],[Κωδικός λογιστικής]],Άλλο[Ημερομηνία έναρξης αιτήματος επιταγής],\">=\"&DATEVALUE(\" 1 \"&ΣύνοψηΜηνιαίωνΕξόδων[[#Headers],[Σεπ]]&_ΕΤΟΣ),Άλλο[Ημερομηνία έναρξης αιτήματος επιταγής],\"<=\"&L$4)","v":{"v":0,"d":"0.00 €"}},{"$f":"SUMIFS(ΑναλυτικάΈσοδα[Ποσό επιταγής],ΑναλυτικάΈσοδα[Κωδικός λογιστικής],ΣύνοψηΜηνιαίωνΕξόδων[[#This Row],[Κωδικός λογιστικής]],ΑναλυτικάΈσοδα[Ημερομηνία τιμολογίου],\">=\"&M$3,ΑναλυτικάΈσοδα[Ημερομηνία τιμολογίου],\"<=\"&M$4)+SUMIFS(Άλλο[Ποσό επιταγής],Άλλο[Κωδικός λογιστικής],ΣύνοψηΜηνιαίωνΕξόδων[[#This Row],[Κωδικός λογιστικής]],Άλλο[Ημερομηνία έναρξης αιτήματος επιταγής],\">=\"&DATEVALUE(\" 1 \"&ΣύνοψηΜηνιαίωνΕξόδων[[#Headers],[Οκτ]]&_ΕΤΟΣ),Άλλο[Ημερομηνία έναρξης αιτήματος επιταγής],\"<=\"&M$4)","v":{"v":0,"d":"0.00 €"}},{"$f":"SUMIFS(ΑναλυτικάΈσοδα[Ποσό επιταγής],ΑναλυτικάΈσοδα[Κωδικός λογιστικής],ΣύνοψηΜηνιαίωνΕξόδων[[#This Row],[Κωδικός λογιστικής]],ΑναλυτικάΈσοδα[Ημερομηνία τιμολογίου],\">=\"&N$3,ΑναλυτικάΈσοδα[Ημερομηνία τιμολογίου],\"<=\"&N$4)+SUMIFS(Άλλο[Ποσό επιταγής],Άλλο[Κωδικός λογιστικής],ΣύνοψηΜηνιαίωνΕξόδων[[#This Row],[Κωδικός λογιστικής]],Άλλο[Ημερομηνία έναρξης αιτήματος επιταγής],\">=\"&DATEVALUE(\" 1 \"&ΣύνοψηΜηνιαίωνΕξόδων[[#Headers],[Νοε]]&_ΕΤΟΣ),Άλλο[Ημερομηνία έναρξης αιτήματος επιταγής],\"<=\"&N$4)","v":{"v":0,"d":"0.00 €"}},{"$f":"SUMIFS(ΑναλυτικάΈσοδα[Ποσό επιταγής],ΑναλυτικάΈσοδα[Κωδικός λογιστικής],ΣύνοψηΜηνιαίωνΕξόδων[[#This Row],[Κωδικός λογιστικής]],ΑναλυτικάΈσοδα[Ημερομηνία τιμολογίου],\">=\"&O$3,ΑναλυτικάΈσοδα[Ημερομηνία τιμολογίου],\"<=\"&O$4)+SUMIFS(Άλλο[Ποσό επιταγής],Άλλο[Κωδικός λογιστικής],ΣύνοψηΜηνιαίωνΕξόδων[[#This Row],[Κωδικός λογιστικής]],Άλλο[Ημερομηνία έναρξης αιτήματος επιταγής],\">=\"&DATEVALUE(\" 1 \"&ΣύνοψηΜηνιαίωνΕξόδων[[#Headers],[Δεκ]]&_ΕΤΟΣ),Άλλο[Ημερομηνία έναρξης αιτήματος επιταγής],\"<=\"&O$4)","v":{"v":0,"d":"0.00 €"}},{"$f":"SUM(ΣύνοψηΜηνιαίωνΕξόδων[[#This Row],[Ιαν]:[Δεκ]])","v":{"v":0,"d":"0.00 €"}}]
[null,11000,"Φιλανθρωπίες",{"$f":"SUMIFS(ΑναλυτικάΈσοδα[Ποσό επιταγής],ΑναλυτικάΈσοδα[Κωδικός λογιστικής],ΣύνοψηΜηνιαίωνΕξόδων[[#This Row],[Κωδικός λογιστικής]],ΑναλυτικάΈσοδα[Ημερομηνία τιμολογίου],\">=\"&D$3,ΑναλυτικάΈσοδα[Ημερομηνία τιμολογίου],\"<=\"&D$4)+SUMIFS(Άλλο[Ποσό επιταγής],Άλλο[Κωδικός λογιστικής],ΣύνοψηΜηνιαίωνΕξόδων[[#This Row],[Κωδικός λογιστικής]],Άλλο[Ημερομηνία έναρξης αιτήματος επιταγής],\">=\"&DATEVALUE(\" 1 \"&ΣύνοψηΜηνιαίωνΕξόδων[[#Headers],[Ιαν]]&_ΕΤΟΣ),Άλλο[Ημερομηνία έναρξης αιτήματος επιταγής],\"<=\"&D$4)","v":{"v":0,"d":"0.00 €"}},{"$f":"SUMIFS(ΑναλυτικάΈσοδα[Ποσό επιταγής],ΑναλυτικάΈσοδα[Κωδικός λογιστικής],ΣύνοψηΜηνιαίωνΕξόδων[[#This Row],[Κωδικός λογιστικής]],ΑναλυτικάΈσοδα[Ημερομηνία τιμολογίου],\">=\"&E$3,ΑναλυτικάΈσοδα[Ημερομηνία τιμολογίου],\"<=\"&E$4)+SUMIFS(Άλλο[Ποσό επιταγής],Άλλο[Κωδικός λογιστικής],ΣύνοψηΜηνιαίωνΕξόδων[[#This Row],[Κωδικός λογιστικής]],Άλλο[Ημερομηνία έναρξης αιτήματος επιταγής],\">=\"&DATEVALUE(\" 1 \"&ΣύνοψηΜηνιαίωνΕξόδων[[#Headers],[Φεβ]]&_ΕΤΟΣ),Άλλο[Ημερομηνία έναρξης αιτήματος επιταγής],\"<=\"&E$4)","v":{"v":0,"d":"0.00 €"}},{"$f":"SUMIFS(ΑναλυτικάΈσοδα[Ποσό επιταγής],ΑναλυτικάΈσοδα[Κωδικός λογιστικής],ΣύνοψηΜηνιαίωνΕξόδων[[#This Row],[Κωδικός λογιστικής]],ΑναλυτικάΈσοδα[Ημερομηνία τιμολογίου],\">=\"&F$3,ΑναλυτικάΈσοδα[Ημερομηνία τιμολογίου],\"<=\"&F$4)+SUMIFS(Άλλο[Ποσό επιταγής],Άλλο[Κωδικός λογιστικής],ΣύνοψηΜηνιαίωνΕξόδων[[#This Row],[Κωδικός λογιστικής]],Άλλο[Ημερομηνία έναρξης αιτήματος επιταγής],\">=\"&DATEVALUE(\" 1 \"&ΣύνοψηΜηνιαίωνΕξόδων[[#Headers],[Μαρ]]&_ΕΤΟΣ),Άλλο[Ημερομηνία έναρξης αιτήματος επιταγής],\"<=\"&F$4)","v":{"v":0,"d":"0.00 €"}},{"$f":"SUMIFS(ΑναλυτικάΈσοδα[Ποσό επιταγής],ΑναλυτικάΈσοδα[Κωδικός λογιστικής],ΣύνοψηΜηνιαίωνΕξόδων[[#This Row],[Κωδικός λογιστικής]],ΑναλυτικάΈσοδα[Ημερομηνία τιμολογίου],\">=\"&G$3,ΑναλυτικάΈσοδα[Ημερομηνία τιμολογίου],\"<=\"&G$4)+SUMIFS(Άλλο[Ποσό επιταγής],Άλλο[Κωδικός λογιστικής],ΣύνοψηΜηνιαίωνΕξόδων[[#This Row],[Κωδικός λογιστικής]],Άλλο[Ημερομηνία έναρξης αιτήματος επιταγής],\">=\"&DATEVALUE(\" 1 \"&ΣύνοψηΜηνιαίωνΕξόδων[[#Headers],[Απρ]]&_ΕΤΟΣ),Άλλο[Ημερομηνία έναρξης αιτήματος επιταγής],\"<=\"&G$4)","v":{"v":0,"d":"0.00 €"}},{"$f":"SUMIFS(ΑναλυτικάΈσοδα[Ποσό επιταγής],ΑναλυτικάΈσοδα[Κωδικός λογιστικής],ΣύνοψηΜηνιαίωνΕξόδων[[#This Row],[Κωδικός λογιστικής]],ΑναλυτικάΈσοδα[Ημερομηνία τιμολογίου],\">=\"&H$3,ΑναλυτικάΈσοδα[Ημερομηνία τιμολογίου],\"<=\"&H$4)+SUMIFS(Άλλο[Ποσό επιταγής],Άλλο[Κωδικός λογιστικής],ΣύνοψηΜηνιαίωνΕξόδων[[#This Row],[Κωδικός λογιστικής]],Άλλο[Ημερομηνία έναρξης αιτήματος επιταγής],\">=\"&DATEVALUE(\" 1 \"&ΣύνοψηΜηνιαίωνΕξόδων[[#Headers],[Μαΐ]]&_ΕΤΟΣ),Άλλο[Ημερομηνία έναρξης αιτήματος επιταγής],\"<=\"&H$4)","v":{"v":0,"d":"0.00 €"}},{"$f":"SUMIFS(ΑναλυτικάΈσοδα[Ποσό επιταγής],ΑναλυτικάΈσοδα[Κωδικός λογιστικής],ΣύνοψηΜηνιαίωνΕξόδων[[#This Row],[Κωδικός λογιστικής]],ΑναλυτικάΈσοδα[Ημερομηνία τιμολογίου],\">=\"&I$3,ΑναλυτικάΈσοδα[Ημερομηνία τιμολογίου],\"<=\"&I$4)+SUMIFS(Άλλο[Ποσό επιταγής],Άλλο[Κωδικός λογιστικής],ΣύνοψηΜηνιαίωνΕξόδων[[#This Row],[Κωδικός λογιστικής]],Άλλο[Ημερομηνία έναρξης αιτήματος επιταγής],\">=\"&DATEVALUE(\" 1 \"&ΣύνοψηΜηνιαίωνΕξόδων[[#Headers],[Ιουν]]&_ΕΤΟΣ),Άλλο[Ημερομηνία έναρξης αιτήματος επιταγής],\"<=\"&I$4)","v":{"v":0,"d":"0.00 €"}},{"$f":"SUMIFS(ΑναλυτικάΈσοδα[Ποσό επιταγής],ΑναλυτικάΈσοδα[Κωδικός λογιστικής],ΣύνοψηΜηνιαίωνΕξόδων[[#This Row],[Κωδικός λογιστικής]],ΑναλυτικάΈσοδα[Ημερομηνία τιμολογίου],\">=\"&J$3,ΑναλυτικάΈσοδα[Ημερομηνία τιμολογίου],\"<=\"&J$4)+SUMIFS(Άλλο[Ποσό επιταγής],Άλλο[Κωδικός λογιστικής],ΣύνοψηΜηνιαίωνΕξόδων[[#This Row],[Κωδικός λογιστικής]],Άλλο[Ημερομηνία έναρξης αιτήματος επιταγής],\">=\"&DATEVALUE(\" 1 \"&ΣύνοψηΜηνιαίωνΕξόδων[[#Headers],[Ιουλ]]&_ΕΤΟΣ),Άλλο[Ημερομηνία έναρξης αιτήματος επιταγής],\"<=\"&J$4)","v":{"v":0,"d":"0.00 €"}},{"$f":"SUMIFS(ΑναλυτικάΈσοδα[Ποσό επιταγής],ΑναλυτικάΈσοδα[Κωδικός λογιστικής],ΣύνοψηΜηνιαίωνΕξόδων[[#This Row],[Κωδικός λογιστικής]],ΑναλυτικάΈσοδα[Ημερομηνία τιμολογίου],\">=\"&K$3,ΑναλυτικάΈσοδα[Ημερομηνία τιμολογίου],\"<=\"&K$4)+SUMIFS(Άλλο[Ποσό επιταγής],Άλλο[Κωδικός λογιστικής],ΣύνοψηΜηνιαίωνΕξόδων[[#This Row],[Κωδικός λογιστικής]],Άλλο[Ημερομηνία έναρξης αιτήματος επιταγής],\">=\"&DATEVALUE(\" 1 \"&ΣύνοψηΜηνιαίωνΕξόδων[[#Headers],[Αυγ]]&_ΕΤΟΣ),Άλλο[Ημερομηνία έναρξης αιτήματος επιταγής],\"<=\"&K$4)","v":{"v":0,"d":"0.00 €"}},{"$f":"SUMIFS(ΑναλυτικάΈσοδα[Ποσό επιταγής],ΑναλυτικάΈσοδα[Κωδικός λογιστικής],ΣύνοψηΜηνιαίωνΕξόδων[[#This Row],[Κωδικός λογιστικής]],ΑναλυτικάΈσοδα[Ημερομηνία τιμολογίου],\">=\"&L$3,ΑναλυτικάΈσοδα[Ημερομηνία τιμολογίου],\"<=\"&L$4)+SUMIFS(Άλλο[Ποσό επιταγής],Άλλο[Κωδικός λογιστικής],ΣύνοψηΜηνιαίωνΕξόδων[[#This Row],[Κωδικός λογιστικής]],Άλλο[Ημερομηνία έναρξης αιτήματος επιταγής],\">=\"&DATEVALUE(\" 1 \"&ΣύνοψηΜηνιαίωνΕξόδων[[#Headers],[Σεπ]]&_ΕΤΟΣ),Άλλο[Ημερομηνία έναρξης αιτήματος επιταγής],\"<=\"&L$4)","v":{"v":0,"d":"0.00 €"}},{"$f":"SUMIFS(ΑναλυτικάΈσοδα[Ποσό επιταγής],ΑναλυτικάΈσοδα[Κωδικός λογιστικής],ΣύνοψηΜηνιαίωνΕξόδων[[#This Row],[Κωδικός λογιστικής]],ΑναλυτικάΈσοδα[Ημερομηνία τιμολογίου],\">=\"&M$3,ΑναλυτικάΈσοδα[Ημερομηνία τιμολογίου],\"<=\"&M$4)+SUMIFS(Άλλο[Ποσό επιταγής],Άλλο[Κωδικός λογιστικής],ΣύνοψηΜηνιαίωνΕξόδων[[#This Row],[Κωδικός λογιστικής]],Άλλο[Ημερομηνία έναρξης αιτήματος επιταγής],\">=\"&DATEVALUE(\" 1 \"&ΣύνοψηΜηνιαίωνΕξόδων[[#Headers],[Οκτ]]&_ΕΤΟΣ),Άλλο[Ημερομηνία έναρξης αιτήματος επιταγής],\"<=\"&M$4)","v":{"v":0,"d":"0.00 €"}},{"$f":"SUMIFS(ΑναλυτικάΈσοδα[Ποσό επιταγής],ΑναλυτικάΈσοδα[Κωδικός λογιστικής],ΣύνοψηΜηνιαίωνΕξόδων[[#This Row],[Κωδικός λογιστικής]],ΑναλυτικάΈσοδα[Ημερομηνία τιμολογίου],\">=\"&N$3,ΑναλυτικάΈσοδα[Ημερομηνία τιμολογίου],\"<=\"&N$4)+SUMIFS(Άλλο[Ποσό επιταγής],Άλλο[Κωδικός λογιστικής],ΣύνοψηΜηνιαίωνΕξόδων[[#This Row],[Κωδικός λογιστικής]],Άλλο[Ημερομηνία έναρξης αιτήματος επιταγής],\">=\"&DATEVALUE(\" 1 \"&ΣύνοψηΜηνιαίωνΕξόδων[[#Headers],[Νοε]]&_ΕΤΟΣ),Άλλο[Ημερομηνία έναρξης αιτήματος επιταγής],\"<=\"&N$4)","v":{"v":0,"d":"0.00 €"}},{"$f":"SUMIFS(ΑναλυτικάΈσοδα[Ποσό επιταγής],ΑναλυτικάΈσοδα[Κωδικός λογιστικής],ΣύνοψηΜηνιαίωνΕξόδων[[#This Row],[Κωδικός λογιστικής]],ΑναλυτικάΈσοδα[Ημερομηνία τιμολογίου],\">=\"&O$3,ΑναλυτικάΈσοδα[Ημερομηνία τιμολογίου],\"<=\"&O$4)+SUMIFS(Άλλο[Ποσό επιταγής],Άλλο[Κωδικός λογιστικής],ΣύνοψηΜηνιαίωνΕξόδων[[#This Row],[Κωδικός λογιστικής]],Άλλο[Ημερομηνία έναρξης αιτήματος επιταγής],\">=\"&DATEVALUE(\" 1 \"&ΣύνοψηΜηνιαίωνΕξόδων[[#Headers],[Δεκ]]&_ΕΤΟΣ),Άλλο[Ημερομηνία έναρξης αιτήματος επιταγής],\"<=\"&O$4)","v":{"v":0,"d":"0.00 €"}},{"$f":"SUM(ΣύνοψηΜηνιαίωνΕξόδων[[#This Row],[Ιαν]:[Δεκ]])","v":{"v":0,"d":"0.00 €"}}]
[null,12000,"Χορηγίες",{"$f":"SUMIFS(ΑναλυτικάΈσοδα[Ποσό επιταγής],ΑναλυτικάΈσοδα[Κωδικός λογιστικής],ΣύνοψηΜηνιαίωνΕξόδων[[#This Row],[Κωδικός λογιστικής]],ΑναλυτικάΈσοδα[Ημερομηνία τιμολογίου],\">=\"&D$3,ΑναλυτικάΈσοδα[Ημερομηνία τιμολογίου],\"<=\"&D$4)+SUMIFS(Άλλο[Ποσό επιταγής],Άλλο[Κωδικός λογιστικής],ΣύνοψηΜηνιαίωνΕξόδων[[#This Row],[Κωδικός λογιστικής]],Άλλο[Ημερομηνία έναρξης αιτήματος επιταγής],\">=\"&DATEVALUE(\" 1 \"&ΣύνοψηΜηνιαίωνΕξόδων[[#Headers],[Ιαν]]&_ΕΤΟΣ),Άλλο[Ημερομηνία έναρξης αιτήματος επιταγής],\"<=\"&D$4)","v":{"v":0,"d":"0.00 €"}},{"$f":"SUMIFS(ΑναλυτικάΈσοδα[Ποσό επιταγής],ΑναλυτικάΈσοδα[Κωδικός λογιστικής],ΣύνοψηΜηνιαίωνΕξόδων[[#This Row],[Κωδικός λογιστικής]],ΑναλυτικάΈσοδα[Ημερομηνία τιμολογίου],\">=\"&E$3,ΑναλυτικάΈσοδα[Ημερομηνία τιμολογίου],\"<=\"&E$4)+SUMIFS(Άλλο[Ποσό επιταγής],Άλλο[Κωδικός λογιστικής],ΣύνοψηΜηνιαίωνΕξόδων[[#This Row],[Κωδικός λογιστικής]],Άλλο[Ημερομηνία έναρξης αιτήματος επιταγής],\">=\"&DATEVALUE(\" 1 \"&ΣύνοψηΜηνιαίωνΕξόδων[[#Headers],[Φεβ]]&_ΕΤΟΣ),Άλλο[Ημερομηνία έναρξης αιτήματος επιταγής],\"<=\"&E$4)","v":{"v":0,"d":"0.00 €"}},{"$f":"SUMIFS(ΑναλυτικάΈσοδα[Ποσό επιταγής],ΑναλυτικάΈσοδα[Κωδικός λογιστικής],ΣύνοψηΜηνιαίωνΕξόδων[[#This Row],[Κωδικός λογιστικής]],ΑναλυτικάΈσοδα[Ημερομηνία τιμολογίου],\">=\"&F$3,ΑναλυτικάΈσοδα[Ημερομηνία τιμολογίου],\"<=\"&F$4)+SUMIFS(Άλλο[Ποσό επιταγής],Άλλο[Κωδικός λογιστικής],ΣύνοψηΜηνιαίωνΕξόδων[[#This Row],[Κωδικός λογιστικής]],Άλλο[Ημερομηνία έναρξης αιτήματος επιταγής],\">=\"&DATEVALUE(\" 1 \"&ΣύνοψηΜηνιαίωνΕξόδων[[#Headers],[Μαρ]]&_ΕΤΟΣ),Άλλο[Ημερομηνία έναρξης αιτήματος επιταγής],\"<=\"&F$4)","v":{"v":0,"d":"0.00 €"}},{"$f":"SUMIFS(ΑναλυτικάΈσοδα[Ποσό επιταγής],ΑναλυτικάΈσοδα[Κωδικός λογιστικής],ΣύνοψηΜηνιαίωνΕξόδων[[#This Row],[Κωδικός λογιστικής]],ΑναλυτικάΈσοδα[Ημερομηνία τιμολογίου],\">=\"&G$3,ΑναλυτικάΈσοδα[Ημερομηνία τιμολογίου],\"<=\"&G$4)+SUMIFS(Άλλο[Ποσό επιταγής],Άλλο[Κωδικός λογιστικής],ΣύνοψηΜηνιαίωνΕξόδων[[#This Row],[Κωδικός λογιστικής]],Άλλο[Ημερομηνία έναρξης αιτήματος επιταγής],\">=\"&DATEVALUE(\" 1 \"&ΣύνοψηΜηνιαίωνΕξόδων[[#Headers],[Απρ]]&_ΕΤΟΣ),Άλλο[Ημερομηνία έναρξης αιτήματος επιταγής],\"<=\"&G$4)","v":{"v":0,"d":"0.00 €"}},{"$f":"SUMIFS(ΑναλυτικάΈσοδα[Ποσό επιταγής],ΑναλυτικάΈσοδα[Κωδικός λογιστικής],ΣύνοψηΜηνιαίωνΕξόδων[[#This Row],[Κωδικός λογιστικής]],ΑναλυτικάΈσοδα[Ημερομηνία τιμολογίου],\">=\"&H$3,ΑναλυτικάΈσοδα[Ημερομηνία τιμολογίου],\"<=\"&H$4)+SUMIFS(Άλλο[Ποσό επιταγής],Άλλο[Κωδικός λογιστικής],ΣύνοψηΜηνιαίωνΕξόδων[[#This Row],[Κωδικός λογιστικής]],Άλλο[Ημερομηνία έναρξης αιτήματος επιταγής],\">=\"&DATEVALUE(\" 1 \"&ΣύνοψηΜηνιαίωνΕξόδων[[#Headers],[Μαΐ]]&_ΕΤΟΣ),Άλλο[Ημερομηνία έναρξης αιτήματος επιταγής],\"<=\"&H$4)","v":{"v":0,"d":"0.00 €"}},{"$f":"SUMIFS(ΑναλυτικάΈσοδα[Ποσό επιταγής],ΑναλυτικάΈσοδα[Κωδικός λογιστικής],ΣύνοψηΜηνιαίωνΕξόδων[[#This Row],[Κωδικός λογιστικής]],ΑναλυτικάΈσοδα[Ημερομηνία τιμολογίου],\">=\"&I$3,ΑναλυτικάΈσοδα[Ημερομηνία τιμολογίου],\"<=\"&I$4)+SUMIFS(Άλλο[Ποσό επιταγής],Άλλο[Κωδικός λογιστικής],ΣύνοψηΜηνιαίωνΕξόδων[[#This Row],[Κωδικός λογιστικής]],Άλλο[Ημερομηνία έναρξης αιτήματος επιταγής],\">=\"&DATEVALUE(\" 1 \"&ΣύνοψηΜηνιαίωνΕξόδων[[#Headers],[Ιουν]]&_ΕΤΟΣ),Άλλο[Ημερομηνία έναρξης αιτήματος επιταγής],\"<=\"&I$4)","v":{"v":0,"d":"0.00 €"}},{"$f":"SUMIFS(ΑναλυτικάΈσοδα[Ποσό επιταγής],ΑναλυτικάΈσοδα[Κωδικός λογιστικής],ΣύνοψηΜηνιαίωνΕξόδων[[#This Row],[Κωδικός λογιστικής]],ΑναλυτικάΈσοδα[Ημερομηνία τιμολογίου],\">=\"&J$3,ΑναλυτικάΈσοδα[Ημερομηνία τιμολογίου],\"<=\"&J$4)+SUMIFS(Άλλο[Ποσό επιταγής],Άλλο[Κωδικός λογιστικής],ΣύνοψηΜηνιαίωνΕξόδων[[#This Row],[Κωδικός λογιστικής]],Άλλο[Ημερομηνία έναρξης αιτήματος επιταγής],\">=\"&DATEVALUE(\" 1 \"&ΣύνοψηΜηνιαίωνΕξόδων[[#Headers],[Ιουλ]]&_ΕΤΟΣ),Άλλο[Ημερομηνία έναρξης αιτήματος επιταγής],\"<=\"&J$4)","v":{"v":0,"d":"0.00 €"}},{"$f":"SUMIFS(ΑναλυτικάΈσοδα[Ποσό επιταγής],ΑναλυτικάΈσοδα[Κωδικός λογιστικής],ΣύνοψηΜηνιαίωνΕξόδων[[#This Row],[Κωδικός λογιστικής]],ΑναλυτικάΈσοδα[Ημερομηνία τιμολογίου],\">=\"&K$3,ΑναλυτικάΈσοδα[Ημερομηνία τιμολογίου],\"<=\"&K$4)+SUMIFS(Άλλο[Ποσό επιταγής],Άλλο[Κωδικός λογιστικής],ΣύνοψηΜηνιαίωνΕξόδων[[#This Row],[Κωδικός λογιστικής]],Άλλο[Ημερομηνία έναρξης αιτήματος επιταγής],\">=\"&DATEVALUE(\" 1 \"&ΣύνοψηΜηνιαίωνΕξόδων[[#Headers],[Αυγ]]&_ΕΤΟΣ),Άλλο[Ημερομηνία έναρξης αιτήματος επιταγής],\"<=\"&K$4)","v":{"v":0,"d":"0.00 €"}},{"$f":"SUMIFS(ΑναλυτικάΈσοδα[Ποσό επιταγής],ΑναλυτικάΈσοδα[Κωδικός λογιστικής],ΣύνοψηΜηνιαίωνΕξόδων[[#This Row],[Κωδικός λογιστικής]],ΑναλυτικάΈσοδα[Ημερομηνία τιμολογίου],\">=\"&L$3,ΑναλυτικάΈσοδα[Ημερομηνία τιμολογίου],\"<=\"&L$4)+SUMIFS(Άλλο[Ποσό επιταγής],Άλλο[Κωδικός λογιστικής],ΣύνοψηΜηνιαίωνΕξόδων[[#This Row],[Κωδικός λογιστικής]],Άλλο[Ημερομηνία έναρξης αιτήματος επιταγής],\">=\"&DATEVALUE(\" 1 \"&ΣύνοψηΜηνιαίωνΕξόδων[[#Headers],[Σεπ]]&_ΕΤΟΣ),Άλλο[Ημερομηνία έναρξης αιτήματος επιταγής],\"<=\"&L$4)","v":{"v":0,"d":"0.00 €"}},{"$f":"SUMIFS(ΑναλυτικάΈσοδα[Ποσό επιταγής],ΑναλυτικάΈσοδα[Κωδικός λογιστικής],ΣύνοψηΜηνιαίωνΕξόδων[[#This Row],[Κωδικός λογιστικής]],ΑναλυτικάΈσοδα[Ημερομηνία τιμολογίου],\">=\"&M$3,ΑναλυτικάΈσοδα[Ημερομηνία τιμολογίου],\"<=\"&M$4)+SUMIFS(Άλλο[Ποσό επιταγής],Άλλο[Κωδικός λογιστικής],ΣύνοψηΜηνιαίωνΕξόδων[[#This Row],[Κωδικός λογιστικής]],Άλλο[Ημερομηνία έναρξης αιτήματος επιταγής],\">=\"&DATEVALUE(\" 1 \"&ΣύνοψηΜηνιαίωνΕξόδων[[#Headers],[Οκτ]]&_ΕΤΟΣ),Άλλο[Ημερομηνία έναρξης αιτήματος επιταγής],\"<=\"&M$4)","v":{"v":0,"d":"0.00 €"}},{"$f":"SUMIFS(ΑναλυτικάΈσοδα[Ποσό επιταγής],ΑναλυτικάΈσοδα[Κωδικός λογιστικής],ΣύνοψηΜηνιαίωνΕξόδων[[#This Row],[Κωδικός λογιστικής]],ΑναλυτικάΈσοδα[Ημερομηνία τιμολογίου],\">=\"&N$3,ΑναλυτικάΈσοδα[Ημερομηνία τιμολογίου],\"<=\"&N$4)+SUMIFS(Άλλο[Ποσό επιταγής],Άλλο[Κωδικός λογιστικής],ΣύνοψηΜηνιαίωνΕξόδων[[#This Row],[Κωδικός λογιστικής]],Άλλο[Ημερομηνία έναρξης αιτήματος επιταγής],\">=\"&DATEVALUE(\" 1 \"&ΣύνοψηΜηνιαίωνΕξόδων[[#Headers],[Νοε]]&_ΕΤΟΣ),Άλλο[Ημερομηνία έναρξης αιτήματος επιταγής],\"<=\"&N$4)","v":{"v":0,"d":"0.00 €"}},{"$f":"SUMIFS(ΑναλυτικάΈσοδα[Ποσό επιταγής],ΑναλυτικάΈσοδα[Κωδικός λογιστικής],ΣύνοψηΜηνιαίωνΕξόδων[[#This Row],[Κωδικός λογιστικής]],ΑναλυτικάΈσοδα[Ημερομηνία τιμολογίου],\">=\"&O$3,ΑναλυτικάΈσοδα[Ημερομηνία τιμολογίου],\"<=\"&O$4)+SUMIFS(Άλλο[Ποσό επιταγής],Άλλο[Κωδικός λογιστικής],ΣύνοψηΜηνιαίωνΕξόδων[[#This Row],[Κωδικός λογιστικής]],Άλλο[Ημερομηνία έναρξης αιτήματος επιταγής],\">=\"&DATEVALUE(\" 1 \"&ΣύνοψηΜηνιαίωνΕξόδων[[#Headers],[Δεκ]]&_ΕΤΟΣ),Άλλο[Ημερομηνία έναρξης αιτήματος επιταγής],\"<=\"&O$4)","v":{"v":0,"d":"0.00 €"}},{"$f":"SUM(ΣύνοψηΜηνιαίωνΕξόδων[[#This Row],[Ιαν]:[Δεκ]])","v":{"v":0,"d":"0.00 €"}}]
[null,"Άθροισμα",null,{"$f":"SUBTOTAL(109,ΣύνοψηΜηνιαίωνΕξόδων[Ιαν])","v":{"v":0,"d":"0.00 €"}},{"$f":"SUBTOTAL(109,ΣύνοψηΜηνιαίωνΕξόδων[Φεβ])","v":{"v":0,"d":"0.00 €"}},{"$f":"SUBTOTAL(109,ΣύνοψηΜηνιαίωνΕξόδων[Μαρ])","v":{"v":0,"d":"0.00 €"}},{"$f":"SUBTOTAL(109,ΣύνοψηΜηνιαίωνΕξόδων[Απρ])","v":{"v":0,"d":"0.00 €"}},{"$f":"SUBTOTAL(109,ΣύνοψηΜηνιαίωνΕξόδων[Μαΐ])","v":{"v":0,"d":"0.00 €"}},{"$f":"SUBTOTAL(109,ΣύνοψηΜηνιαίωνΕξόδων[Ιουν])","v":{"v":0,"d":"0.00 €"}},{"$f":"SUBTOTAL(109,ΣύνοψηΜηνιαίωνΕξόδων[Ιουλ])","v":{"v":0,"d":"0.00 €"}},{"$f":"SUBTOTAL(109,ΣύνοψηΜηνιαίωνΕξόδων[Αυγ])","v":{"v":0,"d":"0.00 €"}},{"$f":"SUBTOTAL(109,ΣύνοψηΜηνιαίωνΕξόδων[Σεπ])","v":{"v":0,"d":"0.00 €"}},{"$f":"SUBTOTAL(109,ΣύνοψηΜηνιαίωνΕξόδων[Οκτ])","v":{"v":0,"d":"0.00 €"}},{"$f":"SUBTOTAL(109,ΣύνοψηΜηνιαίωνΕξόδων[Νοε])","v":{"v":0,"d":"0.00 €"}},{"$f":"SUBTOTAL(109,ΣύνοψηΜηνιαίωνΕξόδων[Δεκ])","v":{"v":0,"d":"0.00 €"}},{"$f":"SUBTOTAL(109,ΣύνοψηΜηνιαίωνΕξόδων[Άθροισμα])","v":{"v":0,"d":"0.00 €"}}]

{"sheet":"ΑΝΑΛΥΤΙΚΑ ΕΞΟΔΑ","index":2,"n_rows":6,"n_cols":10,"rows_kept":6,"merged":[[1,1,1,9],[2,1,2,5],[2,6,2,9]]}
[]
[null,"ΑΝΑΛΥΤΙΚΑ ΕΞΟΔΑ"]
[]
[null,"Κωδικός λογιστικής","Ημερομηνία τιμολογίου","Αρ. τιμολογίου","Ζητήθηκε από","Ποσό επιταγής","Δικαιούχος","Χρήση επιταγής","Μέθοδος διανομής","Ημερομηνία αρχείου:"]
[null,1000,"Ημερομηνία",100,"Στέλλα Κωστίδου",{"v":750.75,"d":"750.75 €"},"Consolidated Messenger ","Πρόγραμμα αλληλογραφίας","Αλληλογραφία","Ημερομηνία"]
[null,7000,"Ημερομηνία",101,"Πέτρος Ντούντης",{"v":2500,"d":"2,500.00 €"},"A. Datum Corporation ","2 επιτραπέζιοι υπολογιστές","Πίστωση","Ημερομηνία"]

{"sheet":"ΦΙΛΑΝΘΡΩΠΙΕΣ & ΧΟΡΗΓΙΕΣ","index":3,"n_rows":6,"n_cols":12,"rows_kept":6,"merged":[[1,1,1,11],[2,1,2,5],[2,6,2,11]]}
[]
[null,"ΦΙΛΑΝΡΩΠΙΕΣ & ΧΟΡΗΓΙΕΣ"]
[]
[null,"Κωδικός λογιστικής","Ημερομηνία έναρξης αιτήματος επιταγής","Ζητήθηκε από","Ποσό επιταγής","Συνεισφορά προηγούμενου έτους","Δικαιούχος","Χρησιμοποιήθηκε για","Τελική υπογραφή","Κατηγορία","Μέθοδος διανομής","Ημερομηνία αρχείου:"]
[null,12000,"Ημερομηνία","Ιωάννης Ξυλαράς",{"v":1000,"d":"1,000.00 €"},{"v":12,"d":"12.00 €"},"Σχολή Καλών Τεχνών ","Υποτροφίες","Διώνη Αγγελή","Τέχνες","Επιταγή","Ημερομηνία"]
[null,11000,"Ημερομηνία","Ιωάννης Ξυλαράς",{"v":2500,"d":"2,500.00 €"},{"v":0,"d":"0.00 €"},"Wingtip Toys ","Κοινότητα","Χρήστος Φλωράς","Κοινότητα","Επιταγή","Ημερομηνία"]